Workbook

Sheet START
B1: O OVOM PREDLOŠKU
B2: Upotrijebite radnu knjigu Proračun radnih troškova da biste pratili planirane i stvarne troškove i odstupanja.
B3: Unesite naziv tvrtke i dodajte logotip.
B4: Unesite pojedinosti u tablice na radnom listu Planirani troškovi i Stvarni troškovi.
B5: Tablice na radnom listu Odstupanje u troškovima i u grafikonima na radnom listu Analiza troškova automatski se ažuriraju
B6: Napomena:
B7: dodatne su upute navedene u stupcu A na svakom radnom listu. Ovaj je tekst namjerno skriven. Da biste uklonili tekst, odaberite stupac A, a zatim odaberite IZBRIŠI. Da biste otkrili tekst, odaberite stupac A, a zatim promijenite boju fonta.
B8: Da biste saznali više o tablicama, pritisnite SHIFT i zatim F10 na tablici pa odaberite mogućnost TABLICA i potom ZAMJENSKI TEKST.

Sheet PLANNED EXPENSES
A1: U tablice na ovom radnom listu unesite planirane troškove zaposlenika, troškove ureda, troškove marketinga i troškove obuke ili putovanja. Ukupni se iznosi automatski izračunavaju. Upute za korištenje ovog radnog lista nalaze se u ćelijama u ovom stupcu. Pomoću tipke sa strelicom prema dolje počnite s radom.
A2: U desnu ćeliju unesite naziv tvrtke, a u ćeliju N2 dodajte njezin logotip. Naslov ovog radnog lista nalazi se u ćeliji K2. | B2: Naziv tvrtke | K2: Detaljne procjene troškova | N2: U ovoj se ćeliji nalazi rezervirano mjesto za logotip.
A3: Savjet se nalazi u ćeliji K3. | K3: Osjenčane ćelije predstavljaju izračune.
A4: Oznaka planiranih troškova nalazi se u desnoj ćeliji, mjeseci su u ćelijama od C4 do N4, oznaka godine nalazi se u ćeliji O4, a upute za korištenje predloška u ćeliji R4. | B4: PLANIRANI TROŠKOVI | C4: SIJ | D4: VELJ | E4: OŽU | F4: TRA | G4: SVI | H4: LIP | I4: SRP | J4: KOL | K4: RUJ | L4: LIS | M4: STU | N4: PRO | O4: GODINA | R4: Savjet: UPUTE ZA KORIŠTENJE PREDLOŠKA Unesite podatke u bijele ćelije na radnim listovima PLANIRANI TROŠKOVI i STVARNI TROŠKOVI, a podaci na listovima ODSTUPANJE U TROŠKOVIMA i ANALIZA TROŠKOVA bit će izračunati umjesto vas. Ako dodate redak na jedan list, drugi se listovi moraju podudarati.
A5: U tablicu Plan za zaposlenike koja počinje ćelijom zdesna unesite troškove zaposlenika. Sljedeća je uputa u ćeliji A10. | B5: Troškovi zaposlenika | C5: Sij | D5: Velj | E5: Ožu | F5: Tra | G5: Svi | H5: Lip | I5: Srp | J5: Kol | K5: Ruj | L5: Lis | M5: Stu | N5: Pro | O5: GODINA
B6: Plaće | C6: 85,000.00 kn | D6: 85,000.00 kn | E6: 85,000.00 kn | F6: 87,500.00 kn | G6: 87,500.00 kn | H6: 87,500.00 kn | I6: 87,500.00 kn | J6: 92,400.00 kn | K6: 92,400.00 kn | L6: 92,400.00 kn | M6: 92,400.00 kn | N6: 92,400.00 kn | O6: =SUM(C6:N6) -> 1,067,000.00 kn
B7: Doprinosi | C7: =C6*0.27 -> 22,950.00 kn | D7: 22,950.00 kn | E7: 22,950.00 kn | F7: 23,625.00 kn | G7: 23,625.00 kn | H7: 23,625.00 kn | I7: 23,625.00 kn | J7: 24,948.00 kn | K7: 24,948.00 kn | L7: 24,948.00 kn | M7: 24,948.00 kn | N7: 24,948.00 kn | O7: =SUM(C7:N7) -> 288,090.00 kn
B8: Podzbroj | C8: =SUBTOTAL(109,EmployeePlan[Sij]) -> 107,950.00 kn | D8: =SUBTOTAL(109,EmployeePlan[Velj]) -> 107,950.00 kn | E8: =SUBTOTAL(109,EmployeePlan[Ožu]) -> 107,950.00 kn | F8: =SUBTOTAL(109,EmployeePlan[Tra]) -> 111,125.00 kn | G8: =SUBTOTAL(109,EmployeePlan[Svi]) -> 111,125.00 kn | H8: =SUBTOTAL(109,EmployeePlan[Lip]) -> 111,125.00 kn | I8: =SUBTOTAL(109,EmployeePlan[Srp]) -> 111,125.00 kn | J8: =SUBTOTAL(109,EmployeePlan[Kol]) -> 117,348.00 kn | K8: =SUBTOTAL(109,EmployeePlan[Ruj]) -> 117,348.00 kn | L8: =SUBTOTAL(109,EmployeePlan[Lis]) -> 117,348.00 kn | M8: =SUBTOTAL(109,EmployeePlan[Stu]) -> 117,348.00 kn | N8: =SUBTOTAL(109,EmployeePlan[Pro]) -> 117,348.00 kn | O8: =SUBTOTAL(109,EmployeePlan[GODINA]) -> 1,355,090.00 kn
A10: U tablicu Plan za ured koja počinje ćelijom zdesna unesite troškove ureda. Sljedeća je uputa u ćeliji A21. | B10: Troškovi ureda | C10: Sij | D10: Velj | E10: Ožu | F10: Tra | G10: Svi | H10: Lip | I10: Srp | J10: Kol | K10: Ruj | L10: Lis | M10: Stu | N10: Pro | O10: GODINA
B11: Najam ureda | C11: 9,800.00 kn | D11: 9,800.00 kn | E11: 9,800.00 kn | F11: 9,800.00 kn | G11: 9,800.00 kn | H11: 9,800.00 kn | I11: 9,800.00 kn | J11: 9,800.00 kn | K11: 9,800.00 kn | L11: 9,800.00 kn | M11: 9,800.00 kn | N11: 9,800.00 kn | O11: =SUM(C11:N11) -> 117,600.00 kn
B12: Plin | D12: 400.00 kn | E12: 400.00 kn | F12: 100.00 kn | G12: 100.00 kn | H12: 100.00 kn | I12: 100.00 kn | J12: 100.00 kn | K12: 100.00 kn | L12: 100.00 kn | M12: 400.00 kn | N12: 400.00 kn | O12: 2,300.00 kn
B13: Struja | C13: 300.00 kn | D13: 300.00 kn | E13: 300.00 kn | F13: 300.00 kn | G13: 300.00 kn | H13: 300.00 kn | I13: 300.00 kn | J13: 300.00 kn | K13: 300.00 kn | L13: 300.00 kn | M13: 300.00 kn | N13: 300.00 kn | O13: 3,600.00 kn
B14: Voda | C14: 40.00 kn | D14: 40.00 kn | E14: 40.00 kn | F14: 40.00 kn | G14: 40.00 kn | H14: 40.00 kn | I14: 40.00 kn | J14: 40.00 kn | K14: 40.00 kn | L14: 40.00 kn | M14: 40.00 kn | N14: 40.00 kn | O14: 480.00 kn
B15: Telefon | C15: 250.00 kn | D15: 250.00 kn | E15: 250.00 kn | F15: 250.00 kn | G15: 250.00 kn | H15: 250.00 kn | I15: 250.00 kn | J15: 250.00 kn | K15: 250.00 kn | L15: 250.00 kn | M15: 250.00 kn | N15: 250.00 kn | O15: 3,000.00 kn
B16: Pristup internetu | C16: 180.00 kn | D16: 180.00 kn | E16: 180.00 kn | F16: 180.00 kn | G16: 180.00 kn | H16: 180.00 kn | I16: 180.00 kn | J16: 180.00 kn | K16: 180.00 kn | L16: 180.00 kn | M16: 180.00 kn | N16: 180.00 kn | O16: 2,160.00 kn
B17: Uredski pribor | C17: 200.00 kn | D17: 200.00 kn | E17: 200.00 kn | F17: 200.00 kn | G17: 200.00 kn | H17: 200.00 kn | I17: 200.00 kn | J17: 200.00 kn | K17: 200.00 kn | L17: 200.00 kn | M17: 200.00 kn | N17: 200.00 kn | O17: 2,400.00 kn
B18: Sigurnost | C18: 600.00 kn | D18: 600.00 kn | E18: 600.00 kn | F18: 600.00 kn | G18: 600.00 kn | H18: 600.00 kn | I18: 600.00 kn | J18: 600.00 kn | K18: 600.00 kn | L18: 600.00 kn | M18: 600.00 kn | N18: 600.00 kn | O18: 7,200.00 kn
B19: Podzbroj | C19: =SUBTOTAL(109,OfficePlan[Sij]) -> 11,370.00 kn | D19: =SUBTOTAL(109,OfficePlan[Velj]) -> 11,770.00 kn | E19: =SUBTOTAL(109,OfficePlan[Ožu]) -> 11,770.00 kn | F19: =SUBTOTAL(109,OfficePlan[Tra]) -> 11,470.00 kn | G19: =SUBTOTAL(109,OfficePlan[Svi]) -> 11,470.00 kn | H19: =SUBTOTAL(109,OfficePlan[Lip]) -> 11,470.00 kn | I19: =SUBTOTAL(109,OfficePlan[Srp]) -> 11,470.00 kn | J19: =SUBTOTAL(109,OfficePlan[Kol]) -> 11,470.00 kn | K19: =SUBTOTAL(109,OfficePlan[Ruj]) -> 11,470.00 kn | L19: =SUBTOTAL(109,OfficePlan[Lis]) -> 11,470.00 kn | M19: =SUBTOTAL(109,OfficePlan[Stu]) -> 11,770.00 kn | N19: =SUBTOTAL(109,OfficePlan[Pro]) -> 11,770.00 kn | O19: =SUBTOTAL(109,OfficePlan[GODINA]) -> 138,740.00 kn
A21: U tablicu Plan za marketing koja počinje ćelijom zdesna unesite troškove marketinga. Sljedeća je uputa u ćeliji A30. | B21: Troškovi marketinga | C21: Sij | D21: Velj | E21: Ožu | F21: Tra | G21: Svi | H21: Lip | I21: Srp | J21: Kol | K21: Ruj | L21: Lis | M21: Stu | N21: Pro | O21: GODINA
B22: Hostiranje web-mjesta | C22: 500.00 kn | D22: 500.00 kn | E22: 500.00 kn | F22: 500.00 kn | G22: 500.00 kn | H22: 500.00 kn | I22: 500.00 kn | J22: 500.00 kn | K22: 500.00 kn | L22: 500.00 kn | M22: 500.00 kn | N22: 500.00 kn | O22: =SUM(C22:N22) -> 6,000.00 kn
B23: Ažuriranje web-mjesta | C23: 200.00 kn | D23: 200.00 kn | E23: 200.00 kn | F23: 200.00 kn | G23: 200.00 kn | H23: 1,000.00 kn | I23: 200.00 kn | J23: 200.00 kn | K23: 200.00 kn | L23: 200.00 kn | M23: 200.00 kn | N23: 1,000.00 kn | O23: 4,000.00 kn
B24: Priprema materijala | C24: 5,000.00 kn | D24: 0.00 kn | E24: 0.00 kn | F24: 5,000.00 kn | G24: 0.00 kn | H24: 0.00 kn | I24: 5,000.00 kn | J24: 0.00 kn | K24: 0.00 kn | L24: 5,000.00 kn | M24: 0.00 kn | N24: 0.00 kn | O24: 20,000.00 kn
B25: Ispis materijala | C25: 200.00 kn | D25: 200.00 kn | E25: 200.00 kn | F25: 200.00 kn | G25: 200.00 kn | H25: 200.00 kn | I25: 200.00 kn | J25: 200.00 kn | K25: 200.00 kn | L25: 200.00 kn | M25: 200.00 kn | N25: 200.00 kn | O25: 2,400.00 kn
B26: Marketinški događaji | C26: 2,000.00 kn | D26: 2,000.00 kn | E26: 2,000.00 kn | F26: 5,000.00 kn | G26: 2,000.00 kn | H26: 2,000.00 kn | I26: 2,000.00 kn | J26: 5,000.00 kn | K26: 2,000.00 kn | L26: 2,000.00 kn | M26: 2,000.00 kn | N26: 5,000.00 kn | O26: 33,000.00 kn
B27: Razni izdaci | C27: 200.00 kn | D27: 200.00 kn | E27: 200.00 kn | F27: 200.00 kn | G27: 200.00 kn | H27: 200.00 kn | I27: 200.00 kn | J27: 200.00 kn | K27: 200.00 kn | L27: 200.00 kn | M27: 200.00 kn | N27: 200.00 kn | O27: 2,400.00 kn
B28: Podzbroj | C28: =SUBTOTAL(109,MarketingPlan[Sij]) -> 8,100.00 kn | D28: =SUBTOTAL(109,MarketingPlan[Velj]) -> 3,100.00 kn | E28: =SUBTOTAL(109,MarketingPlan[Ožu]) -> 3,100.00 kn | F28: =SUBTOTAL(109,MarketingPlan[Tra]) -> 11,100.00 kn | G28: =SUBTOTAL(109,MarketingPlan[Svi]) -> 3,100.00 kn | H28: =SUBTOTAL(109,MarketingPlan[Lip]) -> 3,900.00 kn | I28: =SUBTOTAL(109,MarketingPlan[Srp]) -> 8,100.00 kn | J28: =SUBTOTAL(109,MarketingPlan[Kol]) -> 6,100.00 kn | K28: =SUBTOTAL(109,MarketingPlan[Ruj]) -> 3,100.00 kn | L28: =SUBTOTAL(109,MarketingPlan[Lis]) -> 8,100.00 kn | M28: =SUBTOTAL(109,MarketingPlan[Stu]) -> 3,100.00 kn | N28: =SUBTOTAL(109,MarketingPlan[Pro]) -> 6,900.00 kn | O28: =SUBTOTAL(109,MarketingPlan[GODINA]) -> 67,800.00 kn
A30: U tablicu Plan za obuku i putovanja koja počinje ćelijom zdesna unesite troškove obuke i marketinga. Sljedeća je uputa u ćeliji A35. | B30: Obuka/putovanja | C30: Sij | D30: Velj | E30: Ožu | F30: Tra | G30: Svi | H30: Lip | I30: Srp | J30: Kol | K30: Ruj | L30: Lis | M30: Stu | N30: Pro | O30: GODINA
B31: Obuka | C31: 2,000.00 kn | D31: 2,000.00 kn | E31: 2,000.00 kn | F31: 2,000.00 kn | G31: 2,000.00 kn | H31: 2,000.00 kn | I31: 2,000.00 kn | J31: 2,000.00 kn | K31: 2,000.00 kn | L31: 2,000.00 kn | M31: 2,000.00 kn | N31: 2,000.00 kn | O31: =SUM(C31:N31) -> 24,000.00 kn
B32: Troškovi putovanja povezanih s obukom | C32: 2,000.00 kn | D32: 2,000.00 kn | E32: 2,000.00 kn | F32: 2,000.00 kn | G32: 2,000.00 kn | H32: 2,000.00 kn | I32: 2,000.00 kn | J32: 2,000.00 kn | K32: 2,000.00 kn | L32: 2,000.00 kn | M32: 2,000.00 kn | N32: 2,000.00 kn | O32: =SUM(C32:N32) -> 24,000.00 kn
B33: Podzbroj | C33: =SUBTOTAL(109,TrainingAndTravelPlan[Sij]) -> 4,000.00 kn | D33: =SUBTOTAL(109,TrainingAndTravelPlan[Velj]) -> 4,000.00 kn | E33: =SUBTOTAL(109,TrainingAndTravelPlan[Ožu]) -> 4,000.00 kn | F33: =SUBTOTAL(109,TrainingAndTravelPlan[Tra]) -> 4,000.00 kn | G33: =SUBTOTAL(109,TrainingAndTravelPlan[Svi]) -> 4,000.00 kn | H33: =SUBTOTAL(109,TrainingAndTravelPlan[Lip]) -> 4,000.00 kn | I33: =SUBTOTAL(109,TrainingAndTravelPlan[Srp]) -> 4,000.00 kn | J33: =SUBTOTAL(109,TrainingAndTravelPlan[Kol]) -> 4,000.00 kn | K33: =SUBTOTAL(109,TrainingAndTravelPlan[Ruj]) -> 4,000.00 kn | L33: =SUBTOTAL(109,TrainingAndTravelPlan[Lis]) -> 4,000.00 kn | M33: =SUBTOTAL(109,TrainingAndTravelPlan[Stu]) -> 4,000.00 kn | N33: =SUBTOTAL(109,TrainingAndTravelPlan[Pro]) -> 4,000.00 kn | O33: =SUBTOTAL(109,TrainingAndTravelPlan[GODINA]) -> 48,000.00 kn
A35: Ukupni su iznosi automatski izračunati u tablici Planirani zbroj koja počinje ćelijom zdesna. | B35: UKUPNI IZNOSI | C35: Sij | D35: Velj | E35: Ožu | F35: Tra | G35: Svi | H35: Lip | I35: Srp | J35: Kol | K35: Ruj | L35: Lis | M35: Stu | N35: Pro | O35: Godina
B36: Mjesečni planirani troškovi | C36: =TrainingAndTravelPlan[[#Totals],[Sij]]+MarketingPlan[[#Totals],[Sij]]+OfficePlan[[#Totals],[Sij]]+EmployeePlan[[#Totals],[Sij]] -> 131,420.00 kn | D36: =TrainingAndTravelPlan[[#Totals],[Velj]]+MarketingPlan[[#Totals],[Velj]]+OfficePlan[[#Totals],[Velj]]+EmployeePlan[[#Totals],[Velj]] -> 126,820.00 kn | E36: =TrainingAndTravelPlan[[#Totals],[Ožu]]+MarketingPlan[[#Totals],[Ožu]]+OfficePlan[[#Totals],[Ožu]]+EmployeePlan[[#Totals],[Ožu]] -> 126,820.00 kn | F36: =TrainingAndTravelPlan[[#Totals],[Tra]]+MarketingPlan[[#Totals],[Tra]]+OfficePlan[[#Totals],[Tra]]+EmployeePlan[[#Totals],[Tra]] -> 137,695.00 kn | G36: =TrainingAndTravelPlan[[#Totals],[Svi]]+MarketingPlan[[#Totals],[Svi]]+OfficePlan[[#Totals],[Svi]]+EmployeePlan[[#Totals],[Svi]] -> 129,695.00 kn | H36: =TrainingAndTravelPlan[[#Totals],[Lip]]+MarketingPlan[[#Totals],[Lip]]+OfficePlan[[#Totals],[Lip]]+EmployeePlan[[#Totals],[Lip]] -> 130,495.00 kn | I36: =TrainingAndTravelPlan[[#Totals],[Srp]]+MarketingPlan[[#Totals],[Srp]]+OfficePlan[[#Totals],[Srp]]+EmployeePlan[[#Totals],[Srp]] -> 134,695.00 kn | J36: =TrainingAndTravelPlan[[#Totals],[Kol]]+MarketingPlan[[#Totals],[Kol]]+OfficePlan[[#Totals],[Kol]]+EmployeePlan[[#Totals],[Kol]] -> 138,918.00 kn | K36: =TrainingAndTravelPlan[[#Totals],[Ruj]]+MarketingPlan[[#Totals],[Ruj]]+OfficePlan[[#Totals],[Ruj]]+EmployeePlan[[#Totals],[Ruj]] -> 135,918.00 kn | L36: =TrainingAndTravelPlan[[#Totals],[Lis]]+MarketingPlan[[#Totals],[Lis]]+OfficePlan[[#Totals],[Lis]]+EmployeePlan[[#Totals],[Lis]] -> 140,918.00 kn | M36: =TrainingAndTravelPlan[[#Totals],[Stu]]+MarketingPlan[[#Totals],[Stu]]+OfficePlan[[#Totals],[Stu]]+EmployeePlan[[#Totals],[Stu]] -> 136,218.00 kn | N36: =TrainingAndTravelPlan[[#Totals],[Pro]]+MarketingPlan[[#Totals],[Pro]]+OfficePlan[[#Totals],[Pro]]+EmployeePlan[[#Totals],[Pro]] -> 140,018.00 kn | O36: =TrainingAndTravelPlan[[#Totals],[GODINA]]+MarketingPlan[[#Totals],[GODINA]]+OfficePlan[[#Totals],[GODINA]]+EmployeePlan[[#Totals],[GODINA]] -> 1,609,630.00 kn
B37: UKUPNI planirani troškovi | C37: =SUM($C$36:C36) -> 131,420.00 kn | D37: =SUM($C$36:D36) -> 258,240.00 kn | E37: =SUM($C$36:E36) -> 385,060.00 kn | F37: =SUM($C$36:F36) -> 522,755.00 kn | G37: =SUM($C$36:G36) -> 652,450.00 kn | H37: =SUM($C$36:H36) -> 782,945.00 kn | I37: =SUM($C$36:I36) -> 917,640.00 kn | J37: =SUM($C$36:J36) -> 1,056,558.00 kn | K37: =SUM($C$36:K36) -> 1,192,476.00 kn | L37: =SUM($C$36:L36) -> 1,333,394.00 kn | M37: =SUM($C$36:M36) -> 1,469,612.00 kn | N37: =SUM($C$36:N36) -> 1,609,630.00 kn

Sheet ACTUAL EXPENSES
A1: U tablice na ovom radnom listu unesite stvarne troškove zaposlenika, troškove ureda, troškove marketinga i troškove obuke ili putovanja. Ukupni se iznosi automatski izračunavaju. Upute za korištenje ovog radnog lista nalaze se u ćelijama u ovom stupcu. Pomoću tipke sa strelicom prema dolje počnite s radom.
A2: Naziv tvrtke automatski se ažurira u ćeliji zdesna. Naslov ovog radnog lista nalazi se u ćeliji K2. Logotip unesite u ćeliju N2. | B2: ='PLANNED EXPENSES'!B2:D3 -> Naziv tvrtke | K2: =worksheet_title -> Detaljne procjene troškova | N2: U ovoj se ćeliji nalazi rezervirano mjesto za logotip.
A3: Savjet se nalazi u ćeliji K3. | K3: Osjenčane ćelije predstavljaju izračune.
A4: Oznaka stvarnih troškova nalazi se u ćeliji zdesna, mjeseci su u ćelijama od C4 do N4, dok se oznaka godine nalazi u ćeliji O4. | B4: STVARNI TROŠKOVI | C4: SIJ | D4: VELJ | E4: OŽU | F4: TRA | G4: SVI | H4: LIP | I4: SRP | J4: KOL | K4: RUJ | L4: LIS | M4: STU | N4: PRO | O4: GODINA
A5: U tablicu Stvarni troškovi zaposlenika koja počinje ćelijom zdesna unesite troškove zaposlenika. Sljedeća je uputa u ćeliji A10. | B5: Troškovi zaposlenika | C5: Sij | D5: Velj | E5: Ožu | F5: Tra | G5: Svi | H5: Lip | I5: Srp | J5: Kol | K5: Ruj | L5: Lis | M5: Stu | N5: Pro | O5: GODINA
B6: Plaće | C6: 85,000.00 kn | D6: 85,000.00 kn | E6: 85,000.00 kn | F6: 88,000.00 kn | G6: 88,000.00 kn | H6: 88,000.00 kn | O6: =SUM(C6:N6) -> 519,000.00 kn
B7: Doprinosi | C7: =C6*0.27 -> 22,950.00 kn | D7: 22,950.00 kn | E7: 22,950.00 kn | F7: 23,760.00 kn | G7: 23,760.00 kn | H7: 23,760.00 kn | I7: 0.00 kn | J7: 0.00 kn | K7: 0.00 kn | L7: 0.00 kn | M7: 0.00 kn | N7: 0.00 kn | O7: =SUM(C7:N7) -> 140,130.00 kn
B8: Podzbroj | C8: =SUBTOTAL(109,EmployeeActual[Sij]) -> 107,950.00 kn | D8: =SUBTOTAL(109,EmployeeActual[Velj]) -> 107,950.00 kn | E8: =SUBTOTAL(109,EmployeeActual[Ožu]) -> 107,950.00 kn | F8: =SUBTOTAL(109,EmployeeActual[Tra]) -> 111,760.00 kn | G8: =SUBTOTAL(109,EmployeeActual[Svi]) -> 111,760.00 kn | H8: =SUBTOTAL(109,EmployeeActual[Lip]) -> 111,760.00 kn | I8: =SUBTOTAL(109,EmployeeActual[Srp]) -> 0.00 kn | J8: =SUBTOTAL(109,EmployeeActual[Kol]) -> 0.00 kn | K8: =SUBTOTAL(109,EmployeeActual[Ruj]) -> 0.00 kn | L8: =SUBTOTAL(109,EmployeeActual[Lis]) -> 0.00 kn | M8: =SUBTOTAL(109,EmployeeActual[Stu]) -> 0.00 kn | N8: =SUBTOTAL(109,EmployeeActual[Pro]) -> 0.00 kn | O8: =SUBTOTAL(109,EmployeeActual[GODINA]) -> 659,130.00 kn
A10: U tablicu Stvarni troškovi ureda koja počinje ćelijom zdesna unesite troškove ureda. Sljedeća je uputa u ćeliji A21. | B10: Troškovi ureda | C10: Sij | D10: Velj | E10: Ožu | F10: Tra | G10: Svi | H10: Lip | I10: Srp | J10: Kol | K10: Ruj | L10: Lis | M10: Stu | N10: Pro | O10: GODINA
B11: Najam ureda | C11: 9,800.00 kn | D11: 9,800.00 kn | E11: 9,800.00 kn | F11: 9,800.00 kn | G11: 9,800.00 kn | H11: 9,800.00 kn | O11: =SUM(C11:N11) -> 58,800.00 kn
B12: Plin | C12: 4.00 kn | D12: 430.00 kn | E12: 385.00 kn | F12: 230.00 kn | G12: 87.00 kn | H12: 88.00 kn | O12: 1,224.00 kn
B13: Struja | C13: 288.00 kn | D13: 278.00 kn | E13: 268.00 kn | F13: 299.00 kn | G13: 306.00 kn | H13: 290.00 kn | O13: 1,729.00 kn
B14: Voda | C14: 35.00 kn | D14: 33.00 kn | E14: 34.00 kn | F14: 36.00 kn | G14: 34.00 kn | H14: 36.00 kn | O14: 208.00 kn
B15: Telefon | C15: 224.00 kn | D15: 235.00 kn | E15: 265.00 kn | F15: 245.00 kn | G15: 245.00 kn | H15: 220.00 kn | O15: 1,434.00 kn
B16: Pristup internetu | C16: 180.00 kn | D16: 180.00 kn | E16: 180.00 kn | F16: 180.00 kn | G16: 180.00 kn | H16: 180.00 kn | O16: 1,080.00 kn
B17: Uredski pribor | C17: 256.00 kn | D17: 142.00 kn | E17: 160.00 kn | F17: 221.00 kn | G17: 256.00 kn | H17: 240.00 kn | O17: 1,275.00 kn
B18: Sigurnost | C18: 600.00 kn | D18: 600.00 kn | E18: 600.00 kn | F18: 600.00 kn | G18: 600.00 kn | H18: 600.00 kn | O18: 3,600.00 kn
B19: Podzbroj | C19: =SUBTOTAL(109,OfficeActual[Sij]) -> 11,387.00 kn | D19: =SUBTOTAL(109,OfficeActual[Velj]) -> 11,698.00 kn | E19: =SUBTOTAL(109,OfficeActual[Ožu]) -> 11,692.00 kn | F19: =SUBTOTAL(109,OfficeActual[Tra]) -> 11,611.00 kn | G19: =SUBTOTAL(109,OfficeActual[Svi]) -> 11,508.00 kn | H19: =SUBTOTAL(109,OfficeActual[Lip]) -> 11,454.00 kn | I19: =SUBTOTAL(109,OfficeActual[Srp]) -> 0.00 kn | J19: =SUBTOTAL(109,OfficeActual[Kol]) -> 0.00 kn | K19: =SUBTOTAL(109,OfficeActual[Ruj]) -> 0.00 kn | L19: =SUBTOTAL(109,OfficeActual[Lis]) -> 0.00 kn | M19: =SUBTOTAL(109,OfficeActual[Stu]) -> 0.00 kn | N19: =SUBTOTAL(109,OfficeActual[Pro]) -> 0.00 kn | O19: =SUBTOTAL(109,OfficeActual[GODINA]) -> 69,350.00 kn
A21: U tablicu Stvarni troškovi marketinga koja počinje ćelijom zdesna unesite troškove marketinga. Sljedeća je uputa u ćeliji A30. | B21: Troškovi marketinga | C21: Sij | D21: Velj | E21: Ožu | F21: Tra | G21: Svi | H21: Lip | I21: Srp | J21: Kol | K21: Ruj | L21: Lis | M21: Stu | N21: Pro | O21: GODINA
B22: Hostiranje web-mjesta | C22: 500.00 kn | D22: 500.00 kn | E22: 500.00 kn | F22: 500.00 kn | G22: 500.00 kn | H22: 500.00 kn | O22: =SUM(C22:N22) -> 3,000.00 kn
B23: Ažuriranje web-mjesta | C23: 200.00 kn | D23: 200.00 kn | E23: 200.00 kn | F23: 200.00 kn | G23: 200.00 kn | H23: 1,500.00 kn | O23: 2,500.00 kn
B24: Priprema materijala | C24: 4,800.00 kn | D24: 0.00 kn | E24: 0.00 kn | F24: 5,500.00 kn | G24: 0.00 kn | H24: 0.00 kn | O24: 10,300.00 kn
B25: Ispis materijala | C25: 100.00 kn | D25: 500.00 kn | E25: 100.00 kn | F25: 100.00 kn | G25: 600.00 kn | H25: 180.00 kn | O25: 1,580.00 kn
B26: Marketinški događaji | C26: 1,800.00 kn | D26: 2,200.00 kn | E26: 2,200.00 kn | F26: 4,700.00 kn | G26: 1,500.00 kn | H26: 2,300.00 kn | O26: 14,700.00 kn
B27: Razni izdaci | C27: 145.00 kn | D27: 156.00 kn | E27: 123.00 kn | F27: 223.00 kn | G27: 187.00 kn | H27: 245.00 kn | O27: 1,079.00 kn
B28: Podzbroj | C28: =SUBTOTAL(109,MarketingActual[Sij]) -> 7,545.00 kn | D28: =SUBTOTAL(109,MarketingActual[Velj]) -> 3,556.00 kn | E28: =SUBTOTAL(109,MarketingActual[Ožu]) -> 3,123.00 kn | F28: =SUBTOTAL(109,MarketingActual[Tra]) -> 11,223.00 kn | G28: =SUBTOTAL(109,MarketingActual[Svi]) -> 2,987.00 kn | H28: =SUBTOTAL(109,MarketingActual[Lip]) -> 4,725.00 kn | I28: =SUBTOTAL(109,MarketingActual[Srp]) -> 0.00 kn | J28: =SUBTOTAL(109,MarketingActual[Kol]) -> 0.00 kn | K28: =SUBTOTAL(109,MarketingActual[Ruj]) -> 0.00 kn | L28: =SUBTOTAL(109,MarketingActual[Lis]) -> 0.00 kn | M28: =SUBTOTAL(109,MarketingActual[Stu]) -> 0.00 kn | N28: =SUBTOTAL(109,MarketingActual[Pro]) -> 0.00 kn | O28: =SUBTOTAL(109,MarketingActual[GODINA]) -> 33,159.00 kn
A30: U tablicu Stvarni troškovi obuke i putovanja koja počinje ćelijom zdesna unesite troškove obuke i marketinga. Sljedeća je uputa u ćeliji A35. | B30: Obuka/putovanja | C30: Sij | D30: Velj | E30: Ožu | F30: Tra | G30: Svi | H30: Lip | I30: Srp | J30: Kol | K30: Ruj | L30: Lis | M30: Stu | N30: Pro | O30: GODINA
B31: Obuka | C31: 1,600.00 kn | D31: 2,400.00 kn | E31: 1,400.00 kn | F31: 1,600.00 kn | G31: 1,200.00 kn | H31: 2,800.00 kn | O31: =SUM(C31:N31) -> 11,000.00 kn
B32: Troškovi putovanja povezanih s obukom | C32: 1,200.00 kn | D32: 2,200.00 kn | E32: 1,400.00 kn | F32: 1,200.00 kn | G32: 800.00 kn | H32: 3,500.00 kn | O32: =SUM(C32:N32) -> 10,300.00 kn
B33: Podzbroj | C33: =SUBTOTAL(109,TrainingAndTravelActual[Sij]) -> 2,800.00 kn | D33: =SUBTOTAL(109,TrainingAndTravelActual[Velj]) -> 4,600.00 kn | E33: =SUBTOTAL(109,TrainingAndTravelActual[Ožu]) -> 2,800.00 kn | F33: =SUBTOTAL(109,TrainingAndTravelActual[Tra]) -> 2,800.00 kn | G33: =SUBTOTAL(109,TrainingAndTravelActual[Svi]) -> 2,000.00 kn | H33: =SUBTOTAL(109,TrainingAndTravelActual[Lip]) -> 6,300.00 kn | I33: =SUBTOTAL(109,TrainingAndTravelActual[Srp]) -> 0.00 kn | J33: =SUBTOTAL(109,TrainingAndTravelActual[Kol]) -> 0.00 kn | K33: =SUBTOTAL(109,TrainingAndTravelActual[Ruj]) -> 0.00 kn | L33: =SUBTOTAL(109,TrainingAndTravelActual[Lis]) -> 0.00 kn | M33: =SUBTOTAL(109,TrainingAndTravelActual[Stu]) -> 0.00 kn | N33: =SUBTOTAL(109,TrainingAndTravelActual[Pro]) -> 0.00 kn | O33: =SUBTOTAL(109,TrainingAndTravelActual[GODINA]) -> 21,300.00 kn
A35: Ukupni su stvarni troškovi automatski izračunati u tablici Ukupni zbroj stvarnih troškova koja počinje ćelijom zdesna. | B35: UKUPNI planirani troškovi | C35: Sij | D35: Velj | E35: Ožu | F35: Tra | G35: Svi | H35: Lip | I35: Srp | J35: Kol | K35: Ruj | L35: Lis | M35: Stu | N35: Pro | O35: Godina
B36: Mjesečni stvarni troškovi | C36: =TrainingAndTravelActual[[#Totals],[Sij]]+MarketingActual[[#Totals],[Sij]]+OfficeActual[[#Totals],[Sij]]+EmployeeActual[[#Totals],[Sij]] -> 129,682.00 kn | D36: =TrainingAndTravelActual[[#Totals],[Velj]]+MarketingActual[[#Totals],[Velj]]+OfficeActual[[#Totals],[Velj]]+EmployeeActual[[#Totals],[Velj]] -> 127,804.00 kn | E36: =TrainingAndTravelActual[[#Totals],[Ožu]]+MarketingActual[[#Totals],[Ožu]]+OfficeActual[[#Totals],[Ožu]]+EmployeeActual[[#Totals],[Ožu]] -> 125,565.00 kn | F36: =TrainingAndTravelActual[[#Totals],[Tra]]+MarketingActual[[#Totals],[Tra]]+OfficeActual[[#Totals],[Tra]]+EmployeeActual[[#Totals],[Tra]] -> 137,394.00 kn | G36: =TrainingAndTravelActual[[#Totals],[Svi]]+MarketingActual[[#Totals],[Svi]]+OfficeActual[[#Totals],[Svi]]+EmployeeActual[[#Totals],[Svi]] -> 128,255.00 kn | H36: =TrainingAndTravelActual[[#Totals],[Lip]]+MarketingActual[[#Totals],[Lip]]+OfficeActual[[#Totals],[Lip]]+EmployeeActual[[#Totals],[Lip]] -> 134,239.00 kn | I36: =TrainingAndTravelActual[[#Totals],[Srp]]+MarketingActual[[#Totals],[Srp]]+OfficeActual[[#Totals],[Srp]]+EmployeeActual[[#Totals],[Srp]] -> 0.00 kn | J36: =TrainingAndTravelActual[[#Totals],[Kol]]+MarketingActual[[#Totals],[Kol]]+OfficeActual[[#Totals],[Kol]]+EmployeeActual[[#Totals],[Kol]] -> 0.00 kn | K36: =TrainingAndTravelActual[[#Totals],[Ruj]]+MarketingActual[[#Totals],[Ruj]]+OfficeActual[[#Totals],[Ruj]]+EmployeeActual[[#Totals],[Ruj]] -> 0.00 kn | L36: =TrainingAndTravelActual[[#Totals],[Lis]]+MarketingActual[[#Totals],[Lis]]+OfficeActual[[#Totals],[Lis]]+EmployeeActual[[#Totals],[Lis]] -> 0.00 kn | M36: =TrainingAndTravelActual[[#Totals],[Stu]]+MarketingActual[[#Totals],[Stu]]+OfficeActual[[#Totals],[Stu]]+EmployeeActual[[#Totals],[Stu]] -> 0.00 kn | N36: =TrainingAndTravelActual[[#Totals],[Pro]]+MarketingActual[[#Totals],[Pro]]+OfficeActual[[#Totals],[Pro]]+EmployeeActual[[#Totals],[Pro]] -> 0.00 kn | O36: =TrainingAndTravelActual[[#Totals],[GODINA]]+MarketingActual[[#Totals],[GODINA]]+OfficeActual[[#Totals],[GODINA]]+EmployeeActual[[#Totals],[GODINA]] -> 782,939.00 kn
B37: UKUPNI stvarni troškovi | C37: =SUM($C$36:C36) -> 129,682.00 kn | D37: =SUM($C$36:D36) -> 257,486.00 kn | E37: =SUM($C$36:E36) -> 383,051.00 kn | F37: =SUM($C$36:F36) -> 520,445.00 kn | G37: =SUM($C$36:G36) -> 648,700.00 kn | H37: =SUM($C$36:H36) -> 782,939.00 kn | I37: =SUM($C$36:I36) -> 782,939.00 kn | J37: =SUM($C$36:J36) -> 782,939.00 kn | K37: =SUM($C$36:K36) -> 782,939.00 kn | L37: =SUM($C$36:L36) -> 782,939.00 kn | M37: =SUM($C$36:M36) -> 782,939.00 kn | N37: =SUM($C$36:N36) -> 782,939.00 kn

Sheet EXPENSE VARIANCES
A1: U tablicama na ovom radnom listu automatski se izračunavaju odstupanja u troškovima zaposlenika, troškovima ureda, troškovima marketinga i troškovima obuke ili putovanja. Upute za korištenje ovog radnog lista nalaze se u ćelijama u ovom stupcu. Pomoću tipke sa strelicom prema dolje počnite s radom.
A2: Naziv tvrtke automatski se ažurira u ćeliji zdesna. Naslov ovog radnog lista nalazi se u ćeliji K2. Logotip unesite u ćeliju N2. | B2: ='PLANNED EXPENSES'!B2:D3 -> Naziv tvrtke | K2: =worksheet_title -> Detaljne procjene troškova | N2: U ovoj se ćeliji nalazi rezervirano mjesto za logotip.
A3: Savjet se nalazi u ćeliji K3. | K3: Osjenčane ćelije predstavljaju izračune.
A4: Oznaka odstupanja u troškovima nalazi se u ćeliji zdesna, mjeseci su u ćelijama od C4 do N4, dok se oznaka godine nalazi u ćeliji O4. | B4: ODSTUPANJE U TROŠKOVIMA | C4: SIJ | D4: VELJ | E4: OŽU | F4: TRA | G4: SVI | H4: LIP | I4: SRP | J4: KOL | K4: RUJ | L4: LIS | M4: STU | N4: PRO | O4: GODINA
A5: Odstupanje u troškovima zaposlenika automatski se izračunava u tablici Odstupanja za zaposlenike koja počinje ćelijom zdesna. Sljedeća je uputa u ćeliji A10. | B5: Troškovi zaposlenika | C5: Sij | D5: Velj | E5: Ožu | F5: Tra | G5: Svi | H5: Lip | I5: Srp | J5: Kol | K5: Ruj | L5: Lis | M5: Stu | N5: Pro | O5: GODINA
B6: Plaće | C6: =INDEX(EmployeePlan[],MATCH(INDEX(EmployeeVariances[],ROW()-ROW(EmployeeVariances[[#Headers],[Sij]]),1),INDEX(EmployeePlan[],,1),0),MATCH(EmployeeVariances[[#Headers],[Sij]],EmployeePlan[#Headers],0))-INDEX(EmployeeActual[],MATCH(INDEX(EmployeeVariances[],ROW()-ROW(EmployeeVariances[[#Headers],[Sij]]),1),INDEX(EmployeePlan[],,1),0),MATCH(EmployeeVariances[[#Headers],[Sij]],EmployeeActual[#Headers],0)) -> 0.00 kn | D6: =INDEX(EmployeePlan[],MATCH(INDEX(EmployeeVariances[],ROW()-ROW(EmployeeVariances[[#Headers],[Velj]]),1),INDEX(EmployeePlan[],,1),0),MATCH(EmployeeVariances[[#Headers],[Velj]],EmployeePlan[#Headers],0))-INDEX(EmployeeActual[],MATCH(INDEX(EmployeeVariances[],ROW()-ROW(EmployeeVariances[[#Headers],[Velj]]),1),INDEX(EmployeePlan[],,1),0),MATCH(EmployeeVariances[[#Headers],[Velj]],EmployeeActual[#Headers],0)) -> 0.00 kn | E6: =INDEX(EmployeePlan[],MATCH(INDEX(EmployeeVariances[],ROW()-ROW(EmployeeVariances[[#Headers],[Ožu]]),1),INDEX(EmployeePlan[],,1),0),MATCH(EmployeeVariances[[#Headers],[Ožu]],EmployeePlan[#Headers],0))-INDEX(EmployeeActual[],MATCH(INDEX(EmployeeVariances[],ROW()-ROW(EmployeeVariances[[#Headers],[Ožu]]),1),INDEX(EmployeePlan[],,1),0),MATCH(EmployeeVariances[[#Headers],[Ožu]],EmployeeActual[#Headers],0)) -> 0.00 kn | F6: =INDEX(EmployeePlan[],MATCH(INDEX(EmployeeVariances[],ROW()-ROW(EmployeeVariances[[#Headers],[Tra]]),1),INDEX(EmployeePlan[],,1),0),MATCH(EmployeeVariances[[#Headers],[Tra]],EmployeePlan[#Headers],0))-INDEX(EmployeeActual[],MATCH(INDEX(EmployeeVariances[],ROW()-ROW(EmployeeVariances[[#Headers],[Tra]]),1),INDEX(EmployeePlan[],,1),0),MATCH(EmployeeVariances[[#Headers],[Tra]],EmployeeActual[#Headers],0)) -> -500.00 kn | G6: =INDEX(EmployeePlan[],MATCH(INDEX(EmployeeVariances[],ROW()-ROW(EmployeeVariances[[#Headers],[Svi]]),1),INDEX(EmployeePlan[],,1),0),MATCH(EmployeeVariances[[#Headers],[Svi]],EmployeePlan[#Headers],0))-INDEX(EmployeeActual[],MATCH(INDEX(EmployeeVariances[],ROW()-ROW(EmployeeVariances[[#Headers],[Svi]]),1),INDEX(EmployeePlan[],,1),0),MATCH(EmployeeVariances[[#Headers],[Svi]],EmployeeActual[#Headers],0)) -> -500.00 kn | H6: =INDEX(EmployeePlan[],MATCH(INDEX(EmployeeVariances[],ROW()-ROW(EmployeeVariances[[#Headers],[Lip]]),1),INDEX(EmployeePlan[],,1),0),MATCH(EmployeeVariances[[#Headers],[Lip]],EmployeePlan[#Headers],0))-INDEX(EmployeeActual[],MATCH(INDEX(EmployeeVariances[],ROW()-ROW(EmployeeVariances[[#Headers],[Lip]]),1),INDEX(EmployeePlan[],,1),0),MATCH(EmployeeVariances[[#Headers],[Lip]],EmployeeActual[#Headers],0)) -> -500.00 kn | I6: =INDEX(EmployeePlan[],MATCH(INDEX(EmployeeVariances[],ROW()-ROW(EmployeeVariances[[#Headers],[Srp]]),1),INDEX(EmployeePlan[],,1),0),MATCH(EmployeeVariances[[#Headers],[Srp]],EmployeePlan[#Headers],0))-INDEX(EmployeeActual[],MATCH(INDEX(EmployeeVariances[],ROW()-ROW(EmployeeVariances[[#Headers],[Srp]]),1),INDEX(EmployeePlan[],,1),0),MATCH(EmployeeVariances[[#Headers],[Srp]],EmployeeActual[#Headers],0)) -> 87,500.00 kn | J6: =INDEX(EmployeePlan[],MATCH(INDEX(EmployeeVariances[],ROW()-ROW(EmployeeVariances[[#Headers],[Kol]]),1),INDEX(EmployeePlan[],,1),0),MATCH(EmployeeVariances[[#Headers],[Kol]],EmployeePlan[#Headers],0))-INDEX(EmployeeActual[],MATCH(INDEX(EmployeeVariances[],ROW()-ROW(EmployeeVariances[[#Headers],[Kol]]),1),INDEX(EmployeePlan[],,1),0),MATCH(EmployeeVariances[[#Headers],[Kol]],EmployeeActual[#Headers],0)) -> 92,400.00 kn | K6: =INDEX(EmployeePlan[],MATCH(INDEX(EmployeeVariances[],ROW()-ROW(EmployeeVariances[[#Headers],[Ruj]]),1),INDEX(EmployeePlan[],,1),0),MATCH(EmployeeVariances[[#Headers],[Ruj]],EmployeePlan[#Headers],0))-INDEX(EmployeeActual[],MATCH(INDEX(EmployeeVariances[],ROW()-ROW(EmployeeVariances[[#Headers],[Ruj]]),1),INDEX(EmployeePlan[],,1),0),MATCH(EmployeeVariances[[#Headers],[Ruj]],EmployeeActual[#Headers],0)) -> 92,400.00 kn | L6: =INDEX(EmployeePlan[],MATCH(INDEX(EmployeeVariances[],ROW()-ROW(EmployeeVariances[[#Headers],[Lis]]),1),INDEX(EmployeePlan[],,1),0),MATCH(EmployeeVariances[[#Headers],[Lis]],EmployeePlan[#Headers],0))-INDEX(EmployeeActual[],MATCH(INDEX(EmployeeVariances[],ROW()-ROW(EmployeeVariances[[#Headers],[Lis]]),1),INDEX(EmployeePlan[],,1),0),MATCH(EmployeeVariances[[#Headers],[Lis]],EmployeeActual[#Headers],0)) -> 92,400.00 kn | M6: =INDEX(EmployeePlan[],MATCH(INDEX(EmployeeVariances[],ROW()-ROW(EmployeeVariances[[#Headers],[Stu]]),1),INDEX(EmployeePlan[],,1),0),MATCH(EmployeeVariances[[#Headers],[Stu]],EmployeePlan[#Headers],0))-INDEX(EmployeeActual[],MATCH(INDEX(EmployeeVariances[],ROW()-ROW(EmployeeVariances[[#Headers],[Stu]]),1),INDEX(EmployeePlan[],,1),0),MATCH(EmployeeVariances[[#Headers],[Stu]],EmployeeActual[#Headers],0)) -> 92,400.00 kn | N6: =INDEX(EmployeePlan[],MATCH(INDEX(EmployeeVariances[],ROW()-ROW(EmployeeVariances[[#Headers],[Pro]]),1),INDEX(EmployeePlan[],,1),0),MATCH(EmployeeVariances[[#Headers],[Pro]],EmployeePlan[#Headers],0))-INDEX(EmployeeActual[],MATCH(INDEX(EmployeeVariances[],ROW()-ROW(EmployeeVariances[[#Headers],[Pro]]),1),INDEX(EmployeePlan[],,1),0),MATCH(EmployeeVariances[[#Headers],[Pro]],EmployeeActual[#Headers],0)) -> 92,400.00 kn | O6: =SUM(EmployeeVariances[[#This Row],[Sij]:[Pro]]) -> 548,000.00 kn
B7: Doprinosi | C7: =INDEX(EmployeePlan[],MATCH(INDEX(EmployeeVariances[],ROW()-ROW(EmployeeVariances[[#Headers],[Sij]]),1),INDEX(EmployeePlan[],,1),0),MATCH(EmployeeVariances[[#Headers],[Sij]],EmployeePlan[#Headers],0))-INDEX(EmployeeActual[],MATCH(INDEX(EmployeeVariances[],ROW()-ROW(EmployeeVariances[[#Headers],[Sij]]),1),INDEX(EmployeePlan[],,1),0),MATCH(EmployeeVariances[[#Headers],[Sij]],EmployeeActual[#Headers],0)) -> 0.00 kn | D7: =INDEX(EmployeePlan[],MATCH(INDEX(EmployeeVariances[],ROW()-ROW(EmployeeVariances[[#Headers],[Velj]]),1),INDEX(EmployeePlan[],,1),0),MATCH(EmployeeVariances[[#Headers],[Velj]],EmployeePlan[#Headers],0))-INDEX(EmployeeActual[],MATCH(INDEX(EmployeeVariances[],ROW()-ROW(EmployeeVariances[[#Headers],[Velj]]),1),INDEX(EmployeePlan[],,1),0),MATCH(EmployeeVariances[[#Headers],[Velj]],EmployeeActual[#Headers],0)) -> 0.00 kn | E7: =INDEX(EmployeePlan[],MATCH(INDEX(EmployeeVariances[],ROW()-ROW(EmployeeVariances[[#Headers],[Ožu]]),1),INDEX(EmployeePlan[],,1),0),MATCH(EmployeeVariances[[#Headers],[Ožu]],EmployeePlan[#Headers],0))-INDEX(EmployeeActual[],MATCH(INDEX(EmployeeVariances[],ROW()-ROW(EmployeeVariances[[#Headers],[Ožu]]),1),INDEX(EmployeePlan[],,1),0),MATCH(EmployeeVariances[[#Headers],[Ožu]],EmployeeActual[#Headers],0)) -> 0.00 kn | F7: =INDEX(EmployeePlan[],MATCH(INDEX(EmployeeVariances[],ROW()-ROW(EmployeeVariances[[#Headers],[Tra]]),1),INDEX(EmployeePlan[],,1),0),MATCH(EmployeeVariances[[#Headers],[Tra]],EmployeePlan[#Headers],0))-INDEX(EmployeeActual[],MATCH(INDEX(EmployeeVariances[],ROW()-ROW(EmployeeVariances[[#Headers],[Tra]]),1),INDEX(EmployeePlan[],,1),0),MATCH(EmployeeVariances[[#Headers],[Tra]],EmployeeActual[#Headers],0)) -> -135.00 kn | G7: =INDEX(EmployeePlan[],MATCH(INDEX(EmployeeVariances[],ROW()-ROW(EmployeeVariances[[#Headers],[Svi]]),1),INDEX(EmployeePlan[],,1),0),MATCH(EmployeeVariances[[#Headers],[Svi]],EmployeePlan[#Headers],0))-INDEX(EmployeeActual[],MATCH(INDEX(EmployeeVariances[],ROW()-ROW(EmployeeVariances[[#Headers],[Svi]]),1),INDEX(EmployeePlan[],,1),0),MATCH(EmployeeVariances[[#Headers],[Svi]],EmployeeActual[#Headers],0)) -> -135.00 kn | H7: =INDEX(EmployeePlan[],MATCH(INDEX(EmployeeVariances[],ROW()-ROW(EmployeeVariances[[#Headers],[Lip]]),1),INDEX(EmployeePlan[],,1),0),MATCH(EmployeeVariances[[#Headers],[Lip]],EmployeePlan[#Headers],0))-INDEX(EmployeeActual[],MATCH(INDEX(EmployeeVariances[],ROW()-ROW(EmployeeVariances[[#Headers],[Lip]]),1),INDEX(EmployeePlan[],,1),0),MATCH(EmployeeVariances[[#Headers],[Lip]],EmployeeActual[#Headers],0)) -> -135.00 kn | I7: =INDEX(EmployeePlan[],MATCH(INDEX(EmployeeVariances[],ROW()-ROW(EmployeeVariances[[#Headers],[Srp]]),1),INDEX(EmployeePlan[],,1),0),MATCH(EmployeeVariances[[#Headers],[Srp]],EmployeePlan[#Headers],0))-INDEX(EmployeeActual[],MATCH(INDEX(EmployeeVariances[],ROW()-ROW(EmployeeVariances[[#Headers],[Srp]]),1),INDEX(EmployeePlan[],,1),0),MATCH(EmployeeVariances[[#Headers],[Srp]],EmployeeActual[#Headers],0)) -> 23,625.00 kn | J7: =INDEX(EmployeePlan[],MATCH(INDEX(EmployeeVariances[],ROW()-ROW(EmployeeVariances[[#Headers],[Kol]]),1),INDEX(EmployeePlan[],,1),0),MATCH(EmployeeVariances[[#Headers],[Kol]],EmployeePlan[#Headers],0))-INDEX(EmployeeActual[],MATCH(INDEX(EmployeeVariances[],ROW()-ROW(EmployeeVariances[[#Headers],[Kol]]),1),INDEX(EmployeePlan[],,1),0),MATCH(EmployeeVariances[[#Headers],[Kol]],EmployeeActual[#Headers],0)) -> 24,948.00 kn | K7: =INDEX(EmployeePlan[],MATCH(INDEX(EmployeeVariances[],ROW()-ROW(EmployeeVariances[[#Headers],[Ruj]]),1),INDEX(EmployeePlan[],,1),0),MATCH(EmployeeVariances[[#Headers],[Ruj]],EmployeePlan[#Headers],0))-INDEX(EmployeeActual[],MATCH(INDEX(EmployeeVariances[],ROW()-ROW(EmployeeVariances[[#Headers],[Ruj]]),1),INDEX(EmployeePlan[],,1),0),MATCH(EmployeeVariances[[#Headers],[Ruj]],EmployeeActual[#Headers],0)) -> 24,948.00 kn | L7: =INDEX(EmployeePlan[],MATCH(INDEX(EmployeeVariances[],ROW()-ROW(EmployeeVariances[[#Headers],[Lis]]),1),INDEX(EmployeePlan[],,1),0),MATCH(EmployeeVariances[[#Headers],[Lis]],EmployeePlan[#Headers],0))-INDEX(EmployeeActual[],MATCH(INDEX(EmployeeVariances[],ROW()-ROW(EmployeeVariances[[#Headers],[Lis]]),1),INDEX(EmployeePlan[],,1),0),MATCH(EmployeeVariances[[#Headers],[Lis]],EmployeeActual[#Headers],0)) -> 24,948.00 kn | M7: =INDEX(EmployeePlan[],MATCH(INDEX(EmployeeVariances[],ROW()-ROW(EmployeeVariances[[#Headers],[Stu]]),1),INDEX(EmployeePlan[],,1),0),MATCH(EmployeeVariances[[#Headers],[Stu]],EmployeePlan[#Headers],0))-INDEX(EmployeeActual[],MATCH(INDEX(EmployeeVariances[],ROW()-ROW(EmployeeVariances[[#Headers],[Stu]]),1),INDEX(EmployeePlan[],,1),0),MATCH(EmployeeVariances[[#Headers],[Stu]],EmployeeActual[#Headers],0)) -> 24,948.00 kn | N7: =INDEX(EmployeePlan[],MATCH(INDEX(EmployeeVariances[],ROW()-ROW(EmployeeVariances[[#Headers],[Pro]]),1),INDEX(EmployeePlan[],,1),0),MATCH(EmployeeVariances[[#Headers],[Pro]],EmployeePlan[#Headers],0))-INDEX(EmployeeActual[],MATCH(INDEX(EmployeeVariances[],ROW()-ROW(EmployeeVariances[[#Headers],[Pro]]),1),INDEX(EmployeePlan[],,1),0),MATCH(EmployeeVariances[[#Headers],[Pro]],EmployeeActual[#Headers],0)) -> 24,948.00 kn | O7: =SUM(EmployeeVariances[[#This Row],[Sij]:[Pro]]) -> 147,960.00 kn
B8: Podzbroj | C8: =SUBTOTAL(109,EmployeeVariances[Sij]) -> 0.00 kn | D8: =SUBTOTAL(109,EmployeeVariances[Velj]) -> 0.00 kn | E8: =SUBTOTAL(109,EmployeeVariances[Ožu]) -> 0.00 kn | F8: =SUBTOTAL(109,EmployeeVariances[Tra]) -> -635.00 kn | G8: =SUBTOTAL(109,EmployeeVariances[Svi]) -> -635.00 kn | H8: =SUBTOTAL(109,EmployeeVariances[Lip]) -> -635.00 kn | I8: =SUBTOTAL(109,EmployeeVariances[Srp]) -> 111,125.00 kn | J8: =SUBTOTAL(109,EmployeeVariances[Kol]) -> 117,348.00 kn | K8: =SUBTOTAL(109,EmployeeVariances[Ruj]) -> 117,348.00 kn | L8: =SUBTOTAL(109,EmployeeVariances[Lis]) -> 117,348.00 kn | M8: =SUBTOTAL(109,EmployeeVariances[Stu]) -> 117,348.00 kn | N8: =SUBTOTAL(109,EmployeeVariances[Pro]) -> 117,348.00 kn | O8: =SUBTOTAL(109,EmployeeVariances[GODINA]) -> 695,960.00 kn
A10: Odstupanje u troškovima ureda automatski se izračunava u tablici Odstupanja za ured koja počinje ćelijom zdesna. Sljedeća je uputa u ćeliji A21. | B10: Troškovi ureda | C10: Sij | D10: Velj | E10: Ožu | F10: Tra | G10: Svi | H10: Lip | I10: Srp | J10: Kol | K10: Ruj | L10: Lis | M10: Stu | N10: Pro | O10: GODINA
B11: Najam ureda | C11: =INDEX(OfficePlan[],MATCH(INDEX(OfficeVariances[],ROW()-ROW(OfficeVariances[[#Headers],[Sij]]),1),INDEX(OfficePlan[],,1),0),MATCH(OfficeVariances[[#Headers],[Sij]],OfficePlan[#Headers],0))-INDEX(OfficeActual[],MATCH(INDEX(OfficeVariances[],ROW()-ROW(OfficeVariances[[#Headers],[Sij]]),1),INDEX(OfficePlan[],,1),0),MATCH(OfficeVariances[[#Headers],[Sij]],OfficeActual[#Headers],0)) -> 0.00 kn | D11: =INDEX(OfficePlan[],MATCH(INDEX(OfficeVariances[],ROW()-ROW(OfficeVariances[[#Headers],[Velj]]),1),INDEX(OfficePlan[],,1),0),MATCH(OfficeVariances[[#Headers],[Velj]],OfficePlan[#Headers],0))-INDEX(OfficeActual[],MATCH(INDEX(OfficeVariances[],ROW()-ROW(OfficeVariances[[#Headers],[Velj]]),1),INDEX(OfficePlan[],,1),0),MATCH(OfficeVariances[[#Headers],[Velj]],OfficeActual[#Headers],0)) -> 0.00 kn | E11: =INDEX(OfficePlan[],MATCH(INDEX(OfficeVariances[],ROW()-ROW(OfficeVariances[[#Headers],[Ožu]]),1),INDEX(OfficePlan[],,1),0),MATCH(OfficeVariances[[#Headers],[Ožu]],OfficePlan[#Headers],0))-INDEX(OfficeActual[],MATCH(INDEX(OfficeVariances[],ROW()-ROW(OfficeVariances[[#Headers],[Ožu]]),1),INDEX(OfficePlan[],,1),0),MATCH(OfficeVariances[[#Headers],[Ožu]],OfficeActual[#Headers],0)) -> 0.00 kn | F11: =INDEX(OfficePlan[],MATCH(INDEX(OfficeVariances[],ROW()-ROW(OfficeVariances[[#Headers],[Tra]]),1),INDEX(OfficePlan[],,1),0),MATCH(OfficeVariances[[#Headers],[Tra]],OfficePlan[#Headers],0))-INDEX(OfficeActual[],MATCH(INDEX(OfficeVariances[],ROW()-ROW(OfficeVariances[[#Headers],[Tra]]),1),INDEX(OfficePlan[],,1),0),MATCH(OfficeVariances[[#Headers],[Tra]],OfficeActual[#Headers],0)) -> 0.00 kn | G11: =INDEX(OfficePlan[],MATCH(INDEX(OfficeVariances[],ROW()-ROW(OfficeVariances[[#Headers],[Svi]]),1),INDEX(OfficePlan[],,1),0),MATCH(OfficeVariances[[#Headers],[Svi]],OfficePlan[#Headers],0))-INDEX(OfficeActual[],MATCH(INDEX(OfficeVariances[],ROW()-ROW(OfficeVariances[[#Headers],[Svi]]),1),INDEX(OfficePlan[],,1),0),MATCH(OfficeVariances[[#Headers],[Svi]],OfficeActual[#Headers],0)) -> 0.00 kn | H11: =INDEX(OfficePlan[],MATCH(INDEX(OfficeVariances[],ROW()-ROW(OfficeVariances[[#Headers],[Lip]]),1),INDEX(OfficePlan[],,1),0),MATCH(OfficeVariances[[#Headers],[Lip]],OfficePlan[#Headers],0))-INDEX(OfficeActual[],MATCH(INDEX(OfficeVariances[],ROW()-ROW(OfficeVariances[[#Headers],[Lip]]),1),INDEX(OfficePlan[],,1),0),MATCH(OfficeVariances[[#Headers],[Lip]],OfficeActual[#Headers],0)) -> 0.00 kn | I11: =INDEX(OfficePlan[],MATCH(INDEX(OfficeVariances[],ROW()-ROW(OfficeVariances[[#Headers],[Srp]]),1),INDEX(OfficePlan[],,1),0),MATCH(OfficeVariances[[#Headers],[Srp]],OfficePlan[#Headers],0))-INDEX(OfficeActual[],MATCH(INDEX(OfficeVariances[],ROW()-ROW(OfficeVariances[[#Headers],[Srp]]),1),INDEX(OfficePlan[],,1),0),MATCH(OfficeVariances[[#Headers],[Srp]],OfficeActual[#Headers],0)) -> 9,800.00 kn | J11: =INDEX(OfficePlan[],MATCH(INDEX(OfficeVariances[],ROW()-ROW(OfficeVariances[[#Headers],[Kol]]),1),INDEX(OfficePlan[],,1),0),MATCH(OfficeVariances[[#Headers],[Kol]],OfficePlan[#Headers],0))-INDEX(OfficeActual[],MATCH(INDEX(OfficeVariances[],ROW()-ROW(OfficeVariances[[#Headers],[Kol]]),1),INDEX(OfficePlan[],,1),0),MATCH(OfficeVariances[[#Headers],[Kol]],OfficeActual[#Headers],0)) -> 9,800.00 kn | K11: =INDEX(OfficePlan[],MATCH(INDEX(OfficeVariances[],ROW()-ROW(OfficeVariances[[#Headers],[Ruj]]),1),INDEX(OfficePlan[],,1),0),MATCH(OfficeVariances[[#Headers],[Ruj]],OfficePlan[#Headers],0))-INDEX(OfficeActual[],MATCH(INDEX(OfficeVariances[],ROW()-ROW(OfficeVariances[[#Headers],[Ruj]]),1),INDEX(OfficePlan[],,1),0),MATCH(OfficeVariances[[#Headers],[Ruj]],OfficeActual[#Headers],0)) -> 9,800.00 kn | L11: =INDEX(OfficePlan[],MATCH(INDEX(OfficeVariances[],ROW()-ROW(OfficeVariances[[#Headers],[Lis]]),1),INDEX(OfficePlan[],,1),0),MATCH(OfficeVariances[[#Headers],[Lis]],OfficePlan[#Headers],0))-INDEX(OfficeActual[],MATCH(INDEX(OfficeVariances[],ROW()-ROW(OfficeVariances[[#Headers],[Lis]]),1),INDEX(OfficePlan[],,1),0),MATCH(OfficeVariances[[#Headers],[Lis]],OfficeActual[#Headers],0)) -> 9,800.00 kn | M11: =INDEX(OfficePlan[],MATCH(INDEX(OfficeVariances[],ROW()-ROW(OfficeVariances[[#Headers],[Stu]]),1),INDEX(OfficePlan[],,1),0),MATCH(OfficeVariances[[#Headers],[Stu]],OfficePlan[#Headers],0))-INDEX(OfficeActual[],MATCH(INDEX(OfficeVariances[],ROW()-ROW(OfficeVariances[[#Headers],[Stu]]),1),INDEX(OfficePlan[],,1),0),MATCH(OfficeVariances[[#Headers],[Stu]],OfficeActual[#Headers],0)) -> 9,800.00 kn | N11: =INDEX(OfficePlan[],MATCH(INDEX(OfficeVariances[],ROW()-ROW(OfficeVariances[[#Headers],[Pro]]),1),INDEX(OfficePlan[],,1),0),MATCH(OfficeVariances[[#Headers],[Pro]],OfficePlan[#Headers],0))-INDEX(OfficeActual[],MATCH(INDEX(OfficeVariances[],ROW()-ROW(OfficeVariances[[#Headers],[Pro]]),1),INDEX(OfficePlan[],,1),0),MATCH(OfficeVariances[[#Headers],[Pro]],OfficeActual[#Headers],0)) -> 9,800.00 kn | O11: =SUM(OfficeVariances[[#This Row],[Sij]:[Pro]]) -> 58,800.00 kn
B12: Plin | C12: =INDEX(OfficePlan[],MATCH(INDEX(OfficeVariances[],ROW()-ROW(OfficeVariances[[#Headers],[Sij]]),1),INDEX(OfficePlan[],,1),0),MATCH(OfficeVariances[[#Headers],[Sij]],OfficePlan[#Headers],0))-INDEX(OfficeActual[],MATCH(INDEX(OfficeVariances[],ROW()-ROW(OfficeVariances[[#Headers],[Sij]]),1),INDEX(OfficePlan[],,1),0),MATCH(OfficeVariances[[#Headers],[Sij]],OfficeActual[#Headers],0)) -> -4.00 kn | D12: =INDEX(OfficePlan[],MATCH(INDEX(OfficeVariances[],ROW()-ROW(OfficeVariances[[#Headers],[Velj]]),1),INDEX(OfficePlan[],,1),0),MATCH(OfficeVariances[[#Headers],[Velj]],OfficePlan[#Headers],0))-INDEX(OfficeActual[],MATCH(INDEX(OfficeVariances[],ROW()-ROW(OfficeVariances[[#Headers],[Velj]]),1),INDEX(OfficePlan[],,1),0),MATCH(OfficeVariances[[#Headers],[Velj]],OfficeActual[#Headers],0)) -> -30.00 kn | E12: =INDEX(OfficePlan[],MATCH(INDEX(OfficeVariances[],ROW()-ROW(OfficeVariances[[#Headers],[Ožu]]),1),INDEX(OfficePlan[],,1),0),MATCH(OfficeVariances[[#Headers],[Ožu]],OfficePlan[#Headers],0))-INDEX(OfficeActual[],MATCH(INDEX(OfficeVariances[],ROW()-ROW(OfficeVariances[[#Headers],[Ožu]]),1),INDEX(OfficePlan[],,1),0),MATCH(OfficeVariances[[#Headers],[Ožu]],OfficeActual[#Headers],0)) -> 15.00 kn | F12: =INDEX(OfficePlan[],MATCH(INDEX(OfficeVariances[],ROW()-ROW(OfficeVariances[[#Headers],[Tra]]),1),INDEX(OfficePlan[],,1),0),MATCH(OfficeVariances[[#Headers],[Tra]],OfficePlan[#Headers],0))-INDEX(OfficeActual[],MATCH(INDEX(OfficeVariances[],ROW()-ROW(OfficeVariances[[#Headers],[Tra]]),1),INDEX(OfficePlan[],,1),0),MATCH(OfficeVariances[[#Headers],[Tra]],OfficeActual[#Headers],0)) -> -130.00 kn | G12: =INDEX(OfficePlan[],MATCH(INDEX(OfficeVariances[],ROW()-ROW(OfficeVariances[[#Headers],[Svi]]),1),INDEX(OfficePlan[],,1),0),MATCH(OfficeVariances[[#Headers],[Svi]],OfficePlan[#Headers],0))-INDEX(OfficeActual[],MATCH(INDEX(OfficeVariances[],ROW()-ROW(OfficeVariances[[#Headers],[Svi]]),1),INDEX(OfficePlan[],,1),0),MATCH(OfficeVariances[[#Headers],[Svi]],OfficeActual[#Headers],0)) -> 13.00 kn | H12: =INDEX(OfficePlan[],MATCH(INDEX(OfficeVariances[],ROW()-ROW(OfficeVariances[[#Headers],[Lip]]),1),INDEX(OfficePlan[],,1),0),MATCH(OfficeVariances[[#Headers],[Lip]],OfficePlan[#Headers],0))-INDEX(OfficeActual[],MATCH(INDEX(OfficeVariances[],ROW()-ROW(OfficeVariances[[#Headers],[Lip]]),1),INDEX(OfficePlan[],,1),0),MATCH(OfficeVariances[[#Headers],[Lip]],OfficeActual[#Headers],0)) -> 12.00 kn | I12: =INDEX(OfficePlan[],MATCH(INDEX(OfficeVariances[],ROW()-ROW(OfficeVariances[[#Headers],[Srp]]),1),INDEX(OfficePlan[],,1),0),MATCH(OfficeVariances[[#Headers],[Srp]],OfficePlan[#Headers],0))-INDEX(OfficeActual[],MATCH(INDEX(OfficeVariances[],ROW()-ROW(OfficeVariances[[#Headers],[Srp]]),1),INDEX(OfficePlan[],,1),0),MATCH(OfficeVariances[[#Headers],[Srp]],OfficeActual[#Headers],0)) -> 100.00 kn | J12: =INDEX(OfficePlan[],MATCH(INDEX(OfficeVariances[],ROW()-ROW(OfficeVariances[[#Headers],[Kol]]),1),INDEX(OfficePlan[],,1),0),MATCH(OfficeVariances[[#Headers],[Kol]],OfficePlan[#Headers],0))-INDEX(OfficeActual[],MATCH(INDEX(OfficeVariances[],ROW()-ROW(OfficeVariances[[#Headers],[Kol]]),1),INDEX(OfficePlan[],,1),0),MATCH(OfficeVariances[[#Headers],[Kol]],OfficeActual[#Headers],0)) -> 100.00 kn | K12: =INDEX(OfficePlan[],MATCH(INDEX(OfficeVariances[],ROW()-ROW(OfficeVariances[[#Headers],[Ruj]]),1),INDEX(OfficePlan[],,1),0),MATCH(OfficeVariances[[#Headers],[Ruj]],OfficePlan[#Headers],0))-INDEX(OfficeActual[],MATCH(INDEX(OfficeVariances[],ROW()-ROW(OfficeVariances[[#Headers],[Ruj]]),1),INDEX(OfficePlan[],,1),0),MATCH(OfficeVariances[[#Headers],[Ruj]],OfficeActual[#Headers],0)) -> 100.00 kn | L12: =INDEX(OfficePlan[],MATCH(INDEX(OfficeVariances[],ROW()-ROW(OfficeVariances[[#Headers],[Lis]]),1),INDEX(OfficePlan[],,1),0),MATCH(OfficeVariances[[#Headers],[Lis]],OfficePlan[#Headers],0))-INDEX(OfficeActual[],MATCH(INDEX(OfficeVariances[],ROW()-ROW(OfficeVariances[[#Headers],[Lis]]),1),INDEX(OfficePlan[],,1),0),MATCH(OfficeVariances[[#Headers],[Lis]],OfficeActual[#Headers],0)) -> 100.00 kn | M12: =INDEX(OfficePlan[],MATCH(INDEX(OfficeVariances[],ROW()-ROW(OfficeVariances[[#Headers],[Stu]]),1),INDEX(OfficePlan[],,1),0),MATCH(OfficeVariances[[#Headers],[Stu]],OfficePlan[#Headers],0))-INDEX(OfficeActual[],MATCH(INDEX(OfficeVariances[],ROW()-ROW(OfficeVariances[[#Headers],[Stu]]),1),INDEX(OfficePlan[],,1),0),MATCH(OfficeVariances[[#Headers],[Stu]],OfficeActual[#Headers],0)) -> 400.00 kn | N12: =INDEX(OfficePlan[],MATCH(INDEX(OfficeVariances[],ROW()-ROW(OfficeVariances[[#Headers],[Pro]]),1),INDEX(OfficePlan[],,1),0),MATCH(OfficeVariances[[#Headers],[Pro]],OfficePlan[#Headers],0))-INDEX(OfficeActual[],MATCH(INDEX(OfficeVariances[],ROW()-ROW(OfficeVariances[[#Headers],[Pro]]),1),INDEX(OfficePlan[],,1),0),MATCH(OfficeVariances[[#Headers],[Pro]],OfficeActual[#Headers],0)) -> 400.00 kn | O12: =SUM(OfficeVariances[[#This Row],[Sij]:[Pro]]) -> 1,076.00 kn
B13: Struja | C13: =INDEX(OfficePlan[],MATCH(INDEX(OfficeVariances[],ROW()-ROW(OfficeVariances[[#Headers],[Sij]]),1),INDEX(OfficePlan[],,1),0),MATCH(OfficeVariances[[#Headers],[Sij]],OfficePlan[#Headers],0))-INDEX(OfficeActual[],MATCH(INDEX(OfficeVariances[],ROW()-ROW(OfficeVariances[[#Headers],[Sij]]),1),INDEX(OfficePlan[],,1),0),MATCH(OfficeVariances[[#Headers],[Sij]],OfficeActual[#Headers],0)) -> 12.00 kn | D13: =INDEX(OfficePlan[],MATCH(INDEX(OfficeVariances[],ROW()-ROW(OfficeVariances[[#Headers],[Velj]]),1),INDEX(OfficePlan[],,1),0),MATCH(OfficeVariances[[#Headers],[Velj]],OfficePlan[#Headers],0))-INDEX(OfficeActual[],MATCH(INDEX(OfficeVariances[],ROW()-ROW(OfficeVariances[[#Headers],[Velj]]),1),INDEX(OfficePlan[],,1),0),MATCH(OfficeVariances[[#Headers],[Velj]],OfficeActual[#Headers],0)) -> 22.00 kn | E13: =INDEX(OfficePlan[],MATCH(INDEX(OfficeVariances[],ROW()-ROW(OfficeVariances[[#Headers],[Ožu]]),1),INDEX(OfficePlan[],,1),0),MATCH(OfficeVariances[[#Headers],[Ožu]],OfficePlan[#Headers],0))-INDEX(OfficeActual[],MATCH(INDEX(OfficeVariances[],ROW()-ROW(OfficeVariances[[#Headers],[Ožu]]),1),INDEX(OfficePlan[],,1),0),MATCH(OfficeVariances[[#Headers],[Ožu]],OfficeActual[#Headers],0)) -> 32.00 kn | F13: =INDEX(OfficePlan[],MATCH(INDEX(OfficeVariances[],ROW()-ROW(OfficeVariances[[#Headers],[Tra]]),1),INDEX(OfficePlan[],,1),0),MATCH(OfficeVariances[[#Headers],[Tra]],OfficePlan[#Headers],0))-INDEX(OfficeActual[],MATCH(INDEX(OfficeVariances[],ROW()-ROW(OfficeVariances[[#Headers],[Tra]]),1),INDEX(OfficePlan[],,1),0),MATCH(OfficeVariances[[#Headers],[Tra]],OfficeActual[#Headers],0)) -> 1.00 kn | G13: =INDEX(OfficePlan[],MATCH(INDEX(OfficeVariances[],ROW()-ROW(OfficeVariances[[#Headers],[Svi]]),1),INDEX(OfficePlan[],,1),0),MATCH(OfficeVariances[[#Headers],[Svi]],OfficePlan[#Headers],0))-INDEX(OfficeActual[],MATCH(INDEX(OfficeVariances[],ROW()-ROW(OfficeVariances[[#Headers],[Svi]]),1),INDEX(OfficePlan[],,1),0),MATCH(OfficeVariances[[#Headers],[Svi]],OfficeActual[#Headers],0)) -> -6.00 kn | H13: =INDEX(OfficePlan[],MATCH(INDEX(OfficeVariances[],ROW()-ROW(OfficeVariances[[#Headers],[Lip]]),1),INDEX(OfficePlan[],,1),0),MATCH(OfficeVariances[[#Headers],[Lip]],OfficePlan[#Headers],0))-INDEX(OfficeActual[],MATCH(INDEX(OfficeVariances[],ROW()-ROW(OfficeVariances[[#Headers],[Lip]]),1),INDEX(OfficePlan[],,1),0),MATCH(OfficeVariances[[#Headers],[Lip]],OfficeActual[#Headers],0)) -> 10.00 kn | I13: =INDEX(OfficePlan[],MATCH(INDEX(OfficeVariances[],ROW()-ROW(OfficeVariances[[#Headers],[Srp]]),1),INDEX(OfficePlan[],,1),0),MATCH(OfficeVariances[[#Headers],[Srp]],OfficePlan[#Headers],0))-INDEX(OfficeActual[],MATCH(INDEX(OfficeVariances[],ROW()-ROW(OfficeVariances[[#Headers],[Srp]]),1),INDEX(OfficePlan[],,1),0),MATCH(OfficeVariances[[#Headers],[Srp]],OfficeActual[#Headers],0)) -> 300.00 kn | J13: =INDEX(OfficePlan[],MATCH(INDEX(OfficeVariances[],ROW()-ROW(OfficeVariances[[#Headers],[Kol]]),1),INDEX(OfficePlan[],,1),0),MATCH(OfficeVariances[[#Headers],[Kol]],OfficePlan[#Headers],0))-INDEX(OfficeActual[],MATCH(INDEX(OfficeVariances[],ROW()-ROW(OfficeVariances[[#Headers],[Kol]]),1),INDEX(OfficePlan[],,1),0),MATCH(OfficeVariances[[#Headers],[Kol]],OfficeActual[#Headers],0)) -> 300.00 kn | K13: =INDEX(OfficePlan[],MATCH(INDEX(OfficeVariances[],ROW()-ROW(OfficeVariances[[#Headers],[Ruj]]),1),INDEX(OfficePlan[],,1),0),MATCH(OfficeVariances[[#Headers],[Ruj]],OfficePlan[#Headers],0))-INDEX(OfficeActual[],MATCH(INDEX(OfficeVariances[],ROW()-ROW(OfficeVariances[[#Headers],[Ruj]]),1),INDEX(OfficePlan[],,1),0),MATCH(OfficeVariances[[#Headers],[Ruj]],OfficeActual[#Headers],0)) -> 300.00 kn | L13: =INDEX(OfficePlan[],MATCH(INDEX(OfficeVariances[],ROW()-ROW(OfficeVariances[[#Headers],[Lis]]),1),INDEX(OfficePlan[],,1),0),MATCH(OfficeVariances[[#Headers],[Lis]],OfficePlan[#Headers],0))-INDEX(OfficeActual[],MATCH(INDEX(OfficeVariances[],ROW()-ROW(OfficeVariances[[#Headers],[Lis]]),1),INDEX(OfficePlan[],,1),0),MATCH(OfficeVariances[[#Headers],[Lis]],OfficeActual[#Headers],0)) -> 300.00 kn | M13: =INDEX(OfficePlan[],MATCH(INDEX(OfficeVariances[],ROW()-ROW(OfficeVariances[[#Headers],[Stu]]),1),INDEX(OfficePlan[],,1),0),MATCH(OfficeVariances[[#Headers],[Stu]],OfficePlan[#Headers],0))-INDEX(OfficeActual[],MATCH(INDEX(OfficeVariances[],ROW()-ROW(OfficeVariances[[#Headers],[Stu]]),1),INDEX(OfficePlan[],,1),0),MATCH(OfficeVariances[[#Headers],[Stu]],OfficeActual[#Headers],0)) -> 300.00 kn | N13: =INDEX(OfficePlan[],MATCH(INDEX(OfficeVariances[],ROW()-ROW(OfficeVariances[[#Headers],[Pro]]),1),INDEX(OfficePlan[],,1),0),MATCH(OfficeVariances[[#Headers],[Pro]],OfficePlan[#Headers],0))-INDEX(OfficeActual[],MATCH(INDEX(OfficeVariances[],ROW()-ROW(OfficeVariances[[#Headers],[Pro]]),1),INDEX(OfficePlan[],,1),0),MATCH(OfficeVariances[[#Headers],[Pro]],OfficeActual[#Headers],0)) -> 300.00 kn | O13: =SUM(OfficeVariances[[#This Row],[Sij]:[Pro]]) -> 1,871.00 kn
B14: Voda | C14: =INDEX(OfficePlan[],MATCH(INDEX(OfficeVariances[],ROW()-ROW(OfficeVariances[[#Headers],[Sij]]),1),INDEX(OfficePlan[],,1),0),MATCH(OfficeVariances[[#Headers],[Sij]],OfficePlan[#Headers],0))-INDEX(OfficeActual[],MATCH(INDEX(OfficeVariances[],ROW()-ROW(OfficeVariances[[#Headers],[Sij]]),1),INDEX(OfficePlan[],,1),0),MATCH(OfficeVariances[[#Headers],[Sij]],OfficeActual[#Headers],0)) -> 5.00 kn | D14: =INDEX(OfficePlan[],MATCH(INDEX(OfficeVariances[],ROW()-ROW(OfficeVariances[[#Headers],[Velj]]),1),INDEX(OfficePlan[],,1),0),MATCH(OfficeVariances[[#Headers],[Velj]],OfficePlan[#Headers],0))-INDEX(OfficeActual[],MATCH(INDEX(OfficeVariances[],ROW()-ROW(OfficeVariances[[#Headers],[Velj]]),1),INDEX(OfficePlan[],,1),0),MATCH(OfficeVariances[[#Headers],[Velj]],OfficeActual[#Headers],0)) -> 7.00 kn | E14: =INDEX(OfficePlan[],MATCH(INDEX(OfficeVariances[],ROW()-ROW(OfficeVariances[[#Headers],[Ožu]]),1),INDEX(OfficePlan[],,1),0),MATCH(OfficeVariances[[#Headers],[Ožu]],OfficePlan[#Headers],0))-INDEX(OfficeActual[],MATCH(INDEX(OfficeVariances[],ROW()-ROW(OfficeVariances[[#Headers],[Ožu]]),1),INDEX(OfficePlan[],,1),0),MATCH(OfficeVariances[[#Headers],[Ožu]],OfficeActual[#Headers],0)) -> 6.00 kn | F14: =INDEX(OfficePlan[],MATCH(INDEX(OfficeVariances[],ROW()-ROW(OfficeVariances[[#Headers],[Tra]]),1),INDEX(OfficePlan[],,1),0),MATCH(OfficeVariances[[#Headers],[Tra]],OfficePlan[#Headers],0))-INDEX(OfficeActual[],MATCH(INDEX(OfficeVariances[],ROW()-ROW(OfficeVariances[[#Headers],[Tra]]),1),INDEX(OfficePlan[],,1),0),MATCH(OfficeVariances[[#Headers],[Tra]],OfficeActual[#Headers],0)) -> 4.00 kn | G14: =INDEX(OfficePlan[],MATCH(INDEX(OfficeVariances[],ROW()-ROW(OfficeVariances[[#Headers],[Svi]]),1),INDEX(OfficePlan[],,1),0),MATCH(OfficeVariances[[#Headers],[Svi]],OfficePlan[#Headers],0))-INDEX(OfficeActual[],MATCH(INDEX(OfficeVariances[],ROW()-ROW(OfficeVariances[[#Headers],[Svi]]),1),INDEX(OfficePlan[],,1),0),MATCH(OfficeVariances[[#Headers],[Svi]],OfficeActual[#Headers],0)) -> 6.00 kn | H14: =INDEX(OfficePlan[],MATCH(INDEX(OfficeVariances[],ROW()-ROW(OfficeVariances[[#Headers],[Lip]]),1),INDEX(OfficePlan[],,1),0),MATCH(OfficeVariances[[#Headers],[Lip]],OfficePlan[#Headers],0))-INDEX(OfficeActual[],MATCH(INDEX(OfficeVariances[],ROW()-ROW(OfficeVariances[[#Headers],[Lip]]),1),INDEX(OfficePlan[],,1),0),MATCH(OfficeVariances[[#Headers],[Lip]],OfficeActual[#Headers],0)) -> 4.00 kn | I14: =INDEX(OfficePlan[],MATCH(INDEX(OfficeVariances[],ROW()-ROW(OfficeVariances[[#Headers],[Srp]]),1),INDEX(OfficePlan[],,1),0),MATCH(OfficeVariances[[#Headers],[Srp]],OfficePlan[#Headers],0))-INDEX(OfficeActual[],MATCH(INDEX(OfficeVariances[],ROW()-ROW(OfficeVariances[[#Headers],[Srp]]),1),INDEX(OfficePlan[],,1),0),MATCH(OfficeVariances[[#Headers],[Srp]],OfficeActual[#Headers],0)) -> 40.00 kn | J14: =INDEX(OfficePlan[],MATCH(INDEX(OfficeVariances[],ROW()-ROW(OfficeVariances[[#Headers],[Kol]]),1),INDEX(OfficePlan[],,1),0),MATCH(OfficeVariances[[#Headers],[Kol]],OfficePlan[#Headers],0))-INDEX(OfficeActual[],MATCH(INDEX(OfficeVariances[],ROW()-ROW(OfficeVariances[[#Headers],[Kol]]),1),INDEX(OfficePlan[],,1),0),MATCH(OfficeVariances[[#Headers],[Kol]],OfficeActual[#Headers],0)) -> 40.00 kn | K14: =INDEX(OfficePlan[],MATCH(INDEX(OfficeVariances[],ROW()-ROW(OfficeVariances[[#Headers],[Ruj]]),1),INDEX(OfficePlan[],,1),0),MATCH(OfficeVariances[[#Headers],[Ruj]],OfficePlan[#Headers],0))-INDEX(OfficeActual[],MATCH(INDEX(OfficeVariances[],ROW()-ROW(OfficeVariances[[#Headers],[Ruj]]),1),INDEX(OfficePlan[],,1),0),MATCH(OfficeVariances[[#Headers],[Ruj]],OfficeActual[#Headers],0)) -> 40.00 kn | L14: =INDEX(OfficePlan[],MATCH(INDEX(OfficeVariances[],ROW()-ROW(OfficeVariances[[#Headers],[Lis]]),1),INDEX(OfficePlan[],,1),0),MATCH(OfficeVariances[[#Headers],[Lis]],OfficePlan[#Headers],0))-INDEX(OfficeActual[],MATCH(INDEX(OfficeVariances[],ROW()-ROW(OfficeVariances[[#Headers],[Lis]]),1),INDEX(OfficePlan[],,1),0),MATCH(OfficeVariances[[#Headers],[Lis]],OfficeActual[#Headers],0)) -> 40.00 kn | M14: =INDEX(OfficePlan[],MATCH(INDEX(OfficeVariances[],ROW()-ROW(OfficeVariances[[#Headers],[Stu]]),1),INDEX(OfficePlan[],,1),0),MATCH(OfficeVariances[[#Headers],[Stu]],OfficePlan[#Headers],0))-INDEX(OfficeActual[],MATCH(INDEX(OfficeVariances[],ROW()-ROW(OfficeVariances[[#Headers],[Stu]]),1),INDEX(OfficePlan[],,1),0),MATCH(OfficeVariances[[#Headers],[Stu]],OfficeActual[#Headers],0)) -> 40.00 kn | N14: =INDEX(OfficePlan[],MATCH(INDEX(OfficeVariances[],ROW()-ROW(OfficeVariances[[#Headers],[Pro]]),1),INDEX(OfficePlan[],,1),0),MATCH(OfficeVariances[[#Headers],[Pro]],OfficePlan[#Headers],0))-INDEX(OfficeActual[],MATCH(INDEX(OfficeVariances[],ROW()-ROW(OfficeVariances[[#Headers],[Pro]]),1),INDEX(OfficePlan[],,1),0),MATCH(OfficeVariances[[#Headers],[Pro]],OfficeActual[#Headers],0)) -> 40.00 kn | O14: =SUM(OfficeVariances[[#This Row],[Sij]:[Pro]]) -> 272.00 kn
B15: Telefon | C15: =INDEX(OfficePlan[],MATCH(INDEX(OfficeVariances[],ROW()-ROW(OfficeVariances[[#Headers],[Sij]]),1),INDEX(OfficePlan[],,1),0),MATCH(OfficeVariances[[#Headers],[Sij]],OfficePlan[#Headers],0))-INDEX(OfficeActual[],MATCH(INDEX(OfficeVariances[],ROW()-ROW(OfficeVariances[[#Headers],[Sij]]),1),INDEX(OfficePlan[],,1),0),MATCH(OfficeVariances[[#Headers],[Sij]],OfficeActual[#Headers],0)) -> 26.00 kn | D15: =INDEX(OfficePlan[],MATCH(INDEX(OfficeVariances[],ROW()-ROW(OfficeVariances[[#Headers],[Velj]]),1),INDEX(OfficePlan[],,1),0),MATCH(OfficeVariances[[#Headers],[Velj]],OfficePlan[#Headers],0))-INDEX(OfficeActual[],MATCH(INDEX(OfficeVariances[],ROW()-ROW(OfficeVariances[[#Headers],[Velj]]),1),INDEX(OfficePlan[],,1),0),MATCH(OfficeVariances[[#Headers],[Velj]],OfficeActual[#Headers],0)) -> 15.00 kn | E15: =INDEX(OfficePlan[],MATCH(INDEX(OfficeVariances[],ROW()-ROW(OfficeVariances[[#Headers],[Ožu]]),1),INDEX(OfficePlan[],,1),0),MATCH(OfficeVariances[[#Headers],[Ožu]],OfficePlan[#Headers],0))-INDEX(OfficeActual[],MATCH(INDEX(OfficeVariances[],ROW()-ROW(OfficeVariances[[#Headers],[Ožu]]),1),INDEX(OfficePlan[],,1),0),MATCH(OfficeVariances[[#Headers],[Ožu]],OfficeActual[#Headers],0)) -> -15.00 kn | F15: =INDEX(OfficePlan[],MATCH(INDEX(OfficeVariances[],ROW()-ROW(OfficeVariances[[#Headers],[Tra]]),1),INDEX(OfficePlan[],,1),0),MATCH(OfficeVariances[[#Headers],[Tra]],OfficePlan[#Headers],0))-INDEX(OfficeActual[],MATCH(INDEX(OfficeVariances[],ROW()-ROW(OfficeVariances[[#Headers],[Tra]]),1),INDEX(OfficePlan[],,1),0),MATCH(OfficeVariances[[#Headers],[Tra]],OfficeActual[#Headers],0)) -> 5.00 kn | G15: =INDEX(OfficePlan[],MATCH(INDEX(OfficeVariances[],ROW()-ROW(OfficeVariances[[#Headers],[Svi]]),1),INDEX(OfficePlan[],,1),0),MATCH(OfficeVariances[[#Headers],[Svi]],OfficePlan[#Headers],0))-INDEX(OfficeActual[],MATCH(INDEX(OfficeVariances[],ROW()-ROW(OfficeVariances[[#Headers],[Svi]]),1),INDEX(OfficePlan[],,1),0),MATCH(OfficeVariances[[#Headers],[Svi]],OfficeActual[#Headers],0)) -> 5.00 kn | H15: =INDEX(OfficePlan[],MATCH(INDEX(OfficeVariances[],ROW()-ROW(OfficeVariances[[#Headers],[Lip]]),1),INDEX(OfficePlan[],,1),0),MATCH(OfficeVariances[[#Headers],[Lip]],OfficePlan[#Headers],0))-INDEX(OfficeActual[],MATCH(INDEX(OfficeVariances[],ROW()-ROW(OfficeVariances[[#Headers],[Lip]]),1),INDEX(OfficePlan[],,1),0),MATCH(OfficeVariances[[#Headers],[Lip]],OfficeActual[#Headers],0)) -> 30.00 kn | I15: =INDEX(OfficePlan[],MATCH(INDEX(OfficeVariances[],ROW()-ROW(OfficeVariances[[#Headers],[Srp]]),1),INDEX(OfficePlan[],,1),0),MATCH(OfficeVariances[[#Headers],[Srp]],OfficePlan[#Headers],0))-INDEX(OfficeActual[],MATCH(INDEX(OfficeVariances[],ROW()-ROW(OfficeVariances[[#Headers],[Srp]]),1),INDEX(OfficePlan[],,1),0),MATCH(OfficeVariances[[#Headers],[Srp]],OfficeActual[#Headers],0)) -> 250.00 kn | J15: =INDEX(OfficePlan[],MATCH(INDEX(OfficeVariances[],ROW()-ROW(OfficeVariances[[#Headers],[Kol]]),1),INDEX(OfficePlan[],,1),0),MATCH(OfficeVariances[[#Headers],[Kol]],OfficePlan[#Headers],0))-INDEX(OfficeActual[],MATCH(INDEX(OfficeVariances[],ROW()-ROW(OfficeVariances[[#Headers],[Kol]]),1),INDEX(OfficePlan[],,1),0),MATCH(OfficeVariances[[#Headers],[Kol]],OfficeActual[#Headers],0)) -> 250.00 kn | K15: =INDEX(OfficePlan[],MATCH(INDEX(OfficeVariances[],ROW()-ROW(OfficeVariances[[#Headers],[Ruj]]),1),INDEX(OfficePlan[],,1),0),MATCH(OfficeVariances[[#Headers],[Ruj]],OfficePlan[#Headers],0))-INDEX(OfficeActual[],MATCH(INDEX(OfficeVariances[],ROW()-ROW(OfficeVariances[[#Headers],[Ruj]]),1),INDEX(OfficePlan[],,1),0),MATCH(OfficeVariances[[#Headers],[Ruj]],OfficeActual[#Headers],0)) -> 250.00 kn | L15: =INDEX(OfficePlan[],MATCH(INDEX(OfficeVariances[],ROW()-ROW(OfficeVariances[[#Headers],[Lis]]),1),INDEX(OfficePlan[],,1),0),MATCH(OfficeVariances[[#Headers],[Lis]],OfficePlan[#Headers],0))-INDEX(OfficeActual[],MATCH(INDEX(OfficeVariances[],ROW()-ROW(OfficeVariances[[#Headers],[Lis]]),1),INDEX(OfficePlan[],,1),0),MATCH(OfficeVariances[[#Headers],[Lis]],OfficeActual[#Headers],0)) -> 250.00 kn | M15: =INDEX(OfficePlan[],MATCH(INDEX(OfficeVariances[],ROW()-ROW(OfficeVariances[[#Headers],[Stu]]),1),INDEX(OfficePlan[],,1),0),MATCH(OfficeVariances[[#Headers],[Stu]],OfficePlan[#Headers],0))-INDEX(OfficeActual[],MATCH(INDEX(OfficeVariances[],ROW()-ROW(OfficeVariances[[#Headers],[Stu]]),1),INDEX(OfficePlan[],,1),0),MATCH(OfficeVariances[[#Headers],[Stu]],OfficeActual[#Headers],0)) -> 250.00 kn | N15: =INDEX(OfficePlan[],MATCH(INDEX(OfficeVariances[],ROW()-ROW(OfficeVariances[[#Headers],[Pro]]),1),INDEX(OfficePlan[],,1),0),MATCH(OfficeVariances[[#Headers],[Pro]],OfficePlan[#Headers],0))-INDEX(OfficeActual[],MATCH(INDEX(OfficeVariances[],ROW()-ROW(OfficeVariances[[#Headers],[Pro]]),1),INDEX(OfficePlan[],,1),0),MATCH(OfficeVariances[[#Headers],[Pro]],OfficeActual[#Headers],0)) -> 250.00 kn | O15: =SUM(OfficeVariances[[#This Row],[Sij]:[Pro]]) -> 1,566.00 kn
B16: Pristup internetu | C16: =INDEX(OfficePlan[],MATCH(INDEX(OfficeVariances[],ROW()-ROW(OfficeVariances[[#Headers],[Sij]]),1),INDEX(OfficePlan[],,1),0),MATCH(OfficeVariances[[#Headers],[Sij]],OfficePlan[#Headers],0))-INDEX(OfficeActual[],MATCH(INDEX(OfficeVariances[],ROW()-ROW(OfficeVariances[[#Headers],[Sij]]),1),INDEX(OfficePlan[],,1),0),MATCH(OfficeVariances[[#Headers],[Sij]],OfficeActual[#Headers],0)) -> 0.00 kn | D16: =INDEX(OfficePlan[],MATCH(INDEX(OfficeVariances[],ROW()-ROW(OfficeVariances[[#Headers],[Velj]]),1),INDEX(OfficePlan[],,1),0),MATCH(OfficeVariances[[#Headers],[Velj]],OfficePlan[#Headers],0))-INDEX(OfficeActual[],MATCH(INDEX(OfficeVariances[],ROW()-ROW(OfficeVariances[[#Headers],[Velj]]),1),INDEX(OfficePlan[],,1),0),MATCH(OfficeVariances[[#Headers],[Velj]],OfficeActual[#Headers],0)) -> 0.00 kn | E16: =INDEX(OfficePlan[],MATCH(INDEX(OfficeVariances[],ROW()-ROW(OfficeVariances[[#Headers],[Ožu]]),1),INDEX(OfficePlan[],,1),0),MATCH(OfficeVariances[[#Headers],[Ožu]],OfficePlan[#Headers],0))-INDEX(OfficeActual[],MATCH(INDEX(OfficeVariances[],ROW()-ROW(OfficeVariances[[#Headers],[Ožu]]),1),INDEX(OfficePlan[],,1),0),MATCH(OfficeVariances[[#Headers],[Ožu]],OfficeActual[#Headers],0)) -> 0.00 kn | F16: =INDEX(OfficePlan[],MATCH(INDEX(OfficeVariances[],ROW()-ROW(OfficeVariances[[#Headers],[Tra]]),1),INDEX(OfficePlan[],,1),0),MATCH(OfficeVariances[[#Headers],[Tra]],OfficePlan[#Headers],0))-INDEX(OfficeActual[],MATCH(INDEX(OfficeVariances[],ROW()-ROW(OfficeVariances[[#Headers],[Tra]]),1),INDEX(OfficePlan[],,1),0),MATCH(OfficeVariances[[#Headers],[Tra]],OfficeActual[#Headers],0)) -> 0.00 kn | G16: =INDEX(OfficePlan[],MATCH(INDEX(OfficeVariances[],ROW()-ROW(OfficeVariances[[#Headers],[Svi]]),1),INDEX(OfficePlan[],,1),0),MATCH(OfficeVariances[[#Headers],[Svi]],OfficePlan[#Headers],0))-INDEX(OfficeActual[],MATCH(INDEX(OfficeVariances[],ROW()-ROW(OfficeVariances[[#Headers],[Svi]]),1),INDEX(OfficePlan[],,1),0),MATCH(OfficeVariances[[#Headers],[Svi]],OfficeActual[#Headers],0)) -> 0.00 kn | H16: =INDEX(OfficePlan[],MATCH(INDEX(OfficeVariances[],ROW()-ROW(OfficeVariances[[#Headers],[Lip]]),1),INDEX(OfficePlan[],,1),0),MATCH(OfficeVariances[[#Headers],[Lip]],OfficePlan[#Headers],0))-INDEX(OfficeActual[],MATCH(INDEX(OfficeVariances[],ROW()-ROW(OfficeVariances[[#Headers],[Lip]]),1),INDEX(OfficePlan[],,1),0),MATCH(OfficeVariances[[#Headers],[Lip]],OfficeActual[#Headers],0)) -> 0.00 kn | I16: =INDEX(OfficePlan[],MATCH(INDEX(OfficeVariances[],ROW()-ROW(OfficeVariances[[#Headers],[Srp]]),1),INDEX(OfficePlan[],,1),0),MATCH(OfficeVariances[[#Headers],[Srp]],OfficePlan[#Headers],0))-INDEX(OfficeActual[],MATCH(INDEX(OfficeVariances[],ROW()-ROW(OfficeVariances[[#Headers],[Srp]]),1),INDEX(OfficePlan[],,1),0),MATCH(OfficeVariances[[#Headers],[Srp]],OfficeActual[#Headers],0)) -> 180.00 kn | J16: =INDEX(OfficePlan[],MATCH(INDEX(OfficeVariances[],ROW()-ROW(OfficeVariances[[#Headers],[Kol]]),1),INDEX(OfficePlan[],,1),0),MATCH(OfficeVariances[[#Headers],[Kol]],OfficePlan[#Headers],0))-INDEX(OfficeActual[],MATCH(INDEX(OfficeVariances[],ROW()-ROW(OfficeVariances[[#Headers],[Kol]]),1),INDEX(OfficePlan[],,1),0),MATCH(OfficeVariances[[#Headers],[Kol]],OfficeActual[#Headers],0)) -> 180.00 kn | K16: =INDEX(OfficePlan[],MATCH(INDEX(OfficeVariances[],ROW()-ROW(OfficeVariances[[#Headers],[Ruj]]),1),INDEX(OfficePlan[],,1),0),MATCH(OfficeVariances[[#Headers],[Ruj]],OfficePlan[#Headers],0))-INDEX(OfficeActual[],MATCH(INDEX(OfficeVariances[],ROW()-ROW(OfficeVariances[[#Headers],[Ruj]]),1),INDEX(OfficePlan[],,1),0),MATCH(OfficeVariances[[#Headers],[Ruj]],OfficeActual[#Headers],0)) -> 180.00 kn | L16: =INDEX(OfficePlan[],MATCH(INDEX(OfficeVariances[],ROW()-ROW(OfficeVariances[[#Headers],[Lis]]),1),INDEX(OfficePlan[],,1),0),MATCH(OfficeVariances[[#Headers],[Lis]],OfficePlan[#Headers],0))-INDEX(OfficeActual[],MATCH(INDEX(OfficeVariances[],ROW()-ROW(OfficeVariances[[#Headers],[Lis]]),1),INDEX(OfficePlan[],,1),0),MATCH(OfficeVariances[[#Headers],[Lis]],OfficeActual[#Headers],0)) -> 180.00 kn | M16: =INDEX(OfficePlan[],MATCH(INDEX(OfficeVariances[],ROW()-ROW(OfficeVariances[[#Headers],[Stu]]),1),INDEX(OfficePlan[],,1),0),MATCH(OfficeVariances[[#Headers],[Stu]],OfficePlan[#Headers],0))-INDEX(OfficeActual[],MATCH(INDEX(OfficeVariances[],ROW()-ROW(OfficeVariances[[#Headers],[Stu]]),1),INDEX(OfficePlan[],,1),0),MATCH(OfficeVariances[[#Headers],[Stu]],OfficeActual[#Headers],0)) -> 180.00 kn | N16: =INDEX(OfficePlan[],MATCH(INDEX(OfficeVariances[],ROW()-ROW(OfficeVariances[[#Headers],[Pro]]),1),INDEX(OfficePlan[],,1),0),MATCH(OfficeVariances[[#Headers],[Pro]],OfficePlan[#Headers],0))-INDEX(OfficeActual[],MATCH(INDEX(OfficeVariances[],ROW()-ROW(OfficeVariances[[#Headers],[Pro]]),1),INDEX(OfficePlan[],,1),0),MATCH(OfficeVariances[[#Headers],[Pro]],OfficeActual[#Headers],0)) -> 180.00 kn | O16: =SUM(OfficeVariances[[#This Row],[Sij]:[Pro]]) -> 1,080.00 kn
B17: Uredski pribor | C17: =INDEX(OfficePlan[],MATCH(INDEX(OfficeVariances[],ROW()-ROW(OfficeVariances[[#Headers],[Sij]]),1),INDEX(OfficePlan[],,1),0),MATCH(OfficeVariances[[#Headers],[Sij]],OfficePlan[#Headers],0))-INDEX(OfficeActual[],MATCH(INDEX(OfficeVariances[],ROW()-ROW(OfficeVariances[[#Headers],[Sij]]),1),INDEX(OfficePlan[],,1),0),MATCH(OfficeVariances[[#Headers],[Sij]],OfficeActual[#Headers],0)) -> -56.00 kn | D17: =INDEX(OfficePlan[],MATCH(INDEX(OfficeVariances[],ROW()-ROW(OfficeVariances[[#Headers],[Velj]]),1),INDEX(OfficePlan[],,1),0),MATCH(OfficeVariances[[#Headers],[Velj]],OfficePlan[#Headers],0))-INDEX(OfficeActual[],MATCH(INDEX(OfficeVariances[],ROW()-ROW(OfficeVariances[[#Headers],[Velj]]),1),INDEX(OfficePlan[],,1),0),MATCH(OfficeVariances[[#Headers],[Velj]],OfficeActual[#Headers],0)) -> 58.00 kn | E17: =INDEX(OfficePlan[],MATCH(INDEX(OfficeVariances[],ROW()-ROW(OfficeVariances[[#Headers],[Ožu]]),1),INDEX(OfficePlan[],,1),0),MATCH(OfficeVariances[[#Headers],[Ožu]],OfficePlan[#Headers],0))-INDEX(OfficeActual[],MATCH(INDEX(OfficeVariances[],ROW()-ROW(OfficeVariances[[#Headers],[Ožu]]),1),INDEX(OfficePlan[],,1),0),MATCH(OfficeVariances[[#Headers],[Ožu]],OfficeActual[#Headers],0)) -> 40.00 kn | F17: =INDEX(OfficePlan[],MATCH(INDEX(OfficeVariances[],ROW()-ROW(OfficeVariances[[#Headers],[Tra]]),1),INDEX(OfficePlan[],,1),0),MATCH(OfficeVariances[[#Headers],[Tra]],OfficePlan[#Headers],0))-INDEX(OfficeActual[],MATCH(INDEX(OfficeVariances[],ROW()-ROW(OfficeVariances[[#Headers],[Tra]]),1),INDEX(OfficePlan[],,1),0),MATCH(OfficeVariances[[#Headers],[Tra]],OfficeActual[#Headers],0)) -> -21.00 kn | G17: =INDEX(OfficePlan[],MATCH(INDEX(OfficeVariances[],ROW()-ROW(OfficeVariances[[#Headers],[Svi]]),1),INDEX(OfficePlan[],,1),0),MATCH(OfficeVariances[[#Headers],[Svi]],OfficePlan[#Headers],0))-INDEX(OfficeActual[],MATCH(INDEX(OfficeVariances[],ROW()-ROW(OfficeVariances[[#Headers],[Svi]]),1),INDEX(OfficePlan[],,1),0),MATCH(OfficeVariances[[#Headers],[Svi]],OfficeActual[#Headers],0)) -> -56.00 kn | H17: =INDEX(OfficePlan[],MATCH(INDEX(OfficeVariances[],ROW()-ROW(OfficeVariances[[#Headers],[Lip]]),1),INDEX(OfficePlan[],,1),0),MATCH(OfficeVariances[[#Headers],[Lip]],OfficePlan[#Headers],0))-INDEX(OfficeActual[],MATCH(INDEX(OfficeVariances[],ROW()-ROW(OfficeVariances[[#Headers],[Lip]]),1),INDEX(OfficePlan[],,1),0),MATCH(OfficeVariances[[#Headers],[Lip]],OfficeActual[#Headers],0)) -> -40.00 kn | I17: =INDEX(OfficePlan[],MATCH(INDEX(OfficeVariances[],ROW()-ROW(OfficeVariances[[#Headers],[Srp]]),1),INDEX(OfficePlan[],,1),0),MATCH(OfficeVariances[[#Headers],[Srp]],OfficePlan[#Headers],0))-INDEX(OfficeActual[],MATCH(INDEX(OfficeVariances[],ROW()-ROW(OfficeVariances[[#Headers],[Srp]]),1),INDEX(OfficePlan[],,1),0),MATCH(OfficeVariances[[#Headers],[Srp]],OfficeActual[#Headers],0)) -> 200.00 kn | J17: =INDEX(OfficePlan[],MATCH(INDEX(OfficeVariances[],ROW()-ROW(OfficeVariances[[#Headers],[Kol]]),1),INDEX(OfficePlan[],,1),0),MATCH(OfficeVariances[[#Headers],[Kol]],OfficePlan[#Headers],0))-INDEX(OfficeActual[],MATCH(INDEX(OfficeVariances[],ROW()-ROW(OfficeVariances[[#Headers],[Kol]]),1),INDEX(OfficePlan[],,1),0),MATCH(OfficeVariances[[#Headers],[Kol]],OfficeActual[#Headers],0)) -> 200.00 kn | K17: =INDEX(OfficePlan[],MATCH(INDEX(OfficeVariances[],ROW()-ROW(OfficeVariances[[#Headers],[Ruj]]),1),INDEX(OfficePlan[],,1),0),MATCH(OfficeVariances[[#Headers],[Ruj]],OfficePlan[#Headers],0))-INDEX(OfficeActual[],MATCH(INDEX(OfficeVariances[],ROW()-ROW(OfficeVariances[[#Headers],[Ruj]]),1),INDEX(OfficePlan[],,1),0),MATCH(OfficeVariances[[#Headers],[Ruj]],OfficeActual[#Headers],0)) -> 200.00 kn | L17: =INDEX(OfficePlan[],MATCH(INDEX(OfficeVariances[],ROW()-ROW(OfficeVariances[[#Headers],[Lis]]),1),INDEX(OfficePlan[],,1),0),MATCH(OfficeVariances[[#Headers],[Lis]],OfficePlan[#Headers],0))-INDEX(OfficeActual[],MATCH(INDEX(OfficeVariances[],ROW()-ROW(OfficeVariances[[#Headers],[Lis]]),1),INDEX(OfficePlan[],,1),0),MATCH(OfficeVariances[[#Headers],[Lis]],OfficeActual[#Headers],0)) -> 200.00 kn | M17: =INDEX(OfficePlan[],MATCH(INDEX(OfficeVariances[],ROW()-ROW(OfficeVariances[[#Headers],[Stu]]),1),INDEX(OfficePlan[],,1),0),MATCH(OfficeVariances[[#Headers],[Stu]],OfficePlan[#Headers],0))-INDEX(OfficeActual[],MATCH(INDEX(OfficeVariances[],ROW()-ROW(OfficeVariances[[#Headers],[Stu]]),1),INDEX(OfficePlan[],,1),0),MATCH(OfficeVariances[[#Headers],[Stu]],OfficeActual[#Headers],0)) -> 200.00 kn | N17: =INDEX(OfficePlan[],MATCH(INDEX(OfficeVariances[],ROW()-ROW(OfficeVariances[[#Headers],[Pro]]),1),INDEX(OfficePlan[],,1),0),MATCH(OfficeVariances[[#Headers],[Pro]],OfficePlan[#Headers],0))-INDEX(OfficeActual[],MATCH(INDEX(OfficeVariances[],ROW()-ROW(OfficeVariances[[#Headers],[Pro]]),1),INDEX(OfficePlan[],,1),0),MATCH(OfficeVariances[[#Headers],[Pro]],OfficeActual[#Headers],0)) -> 200.00 kn | O17: =SUM(OfficeVariances[[#This Row],[Sij]:[Pro]]) -> 1,125.00 kn
B18: Sigurnost | C18: =INDEX(OfficePlan[],MATCH(INDEX(OfficeVariances[],ROW()-ROW(OfficeVariances[[#Headers],[Sij]]),1),INDEX(OfficePlan[],,1),0),MATCH(OfficeVariances[[#Headers],[Sij]],OfficePlan[#Headers],0))-INDEX(OfficeActual[],MATCH(INDEX(OfficeVariances[],ROW()-ROW(OfficeVariances[[#Headers],[Sij]]),1),INDEX(OfficePlan[],,1),0),MATCH(OfficeVariances[[#Headers],[Sij]],OfficeActual[#Headers],0)) -> 0.00 kn | D18: =INDEX(OfficePlan[],MATCH(INDEX(OfficeVariances[],ROW()-ROW(OfficeVariances[[#Headers],[Velj]]),1),INDEX(OfficePlan[],,1),0),MATCH(OfficeVariances[[#Headers],[Velj]],OfficePlan[#Headers],0))-INDEX(OfficeActual[],MATCH(INDEX(OfficeVariances[],ROW()-ROW(OfficeVariances[[#Headers],[Velj]]),1),INDEX(OfficePlan[],,1),0),MATCH(OfficeVariances[[#Headers],[Velj]],OfficeActual[#Headers],0)) -> 0.00 kn | E18: =INDEX(OfficePlan[],MATCH(INDEX(OfficeVariances[],ROW()-ROW(OfficeVariances[[#Headers],[Ožu]]),1),INDEX(OfficePlan[],,1),0),MATCH(OfficeVariances[[#Headers],[Ožu]],OfficePlan[#Headers],0))-INDEX(OfficeActual[],MATCH(INDEX(OfficeVariances[],ROW()-ROW(OfficeVariances[[#Headers],[Ožu]]),1),INDEX(OfficePlan[],,1),0),MATCH(OfficeVariances[[#Headers],[Ožu]],OfficeActual[#Headers],0)) -> 0.00 kn | F18: =INDEX(OfficePlan[],MATCH(INDEX(OfficeVariances[],ROW()-ROW(OfficeVariances[[#Headers],[Tra]]),1),INDEX(OfficePlan[],,1),0),MATCH(OfficeVariances[[#Headers],[Tra]],OfficePlan[#Headers],0))-INDEX(OfficeActual[],MATCH(INDEX(OfficeVariances[],ROW()-ROW(OfficeVariances[[#Headers],[Tra]]),1),INDEX(OfficePlan[],,1),0),MATCH(OfficeVariances[[#Headers],[Tra]],OfficeActual[#Headers],0)) -> 0.00 kn | G18: =INDEX(OfficePlan[],MATCH(INDEX(OfficeVariances[],ROW()-ROW(OfficeVariances[[#Headers],[Svi]]),1),INDEX(OfficePlan[],,1),0),MATCH(OfficeVariances[[#Headers],[Svi]],OfficePlan[#Headers],0))-INDEX(OfficeActual[],MATCH(INDEX(OfficeVariances[],ROW()-ROW(OfficeVariances[[#Headers],[Svi]]),1),INDEX(OfficePlan[],,1),0),MATCH(OfficeVariances[[#Headers],[Svi]],OfficeActual[#Headers],0)) -> 0.00 kn | H18: =INDEX(OfficePlan[],MATCH(INDEX(OfficeVariances[],ROW()-ROW(OfficeVariances[[#Headers],[Lip]]),1),INDEX(OfficePlan[],,1),0),MATCH(OfficeVariances[[#Headers],[Lip]],OfficePlan[#Headers],0))-INDEX(OfficeActual[],MATCH(INDEX(OfficeVariances[],ROW()-ROW(OfficeVariances[[#Headers],[Lip]]),1),INDEX(OfficePlan[],,1),0),MATCH(OfficeVariances[[#Headers],[Lip]],OfficeActual[#Headers],0)) -> 0.00 kn | I18: =INDEX(OfficePlan[],MATCH(INDEX(OfficeVariances[],ROW()-ROW(OfficeVariances[[#Headers],[Srp]]),1),INDEX(OfficePlan[],,1),0),MATCH(OfficeVariances[[#Headers],[Srp]],OfficePlan[#Headers],0))-INDEX(OfficeActual[],MATCH(INDEX(OfficeVariances[],ROW()-ROW(OfficeVariances[[#Headers],[Srp]]),1),INDEX(OfficePlan[],,1),0),MATCH(OfficeVariances[[#Headers],[Srp]],OfficeActual[#Headers],0)) -> 600.00 kn | J18: =INDEX(OfficePlan[],MATCH(INDEX(OfficeVariances[],ROW()-ROW(OfficeVariances[[#Headers],[Kol]]),1),INDEX(OfficePlan[],,1),0),MATCH(OfficeVariances[[#Headers],[Kol]],OfficePlan[#Headers],0))-INDEX(OfficeActual[],MATCH(INDEX(OfficeVariances[],ROW()-ROW(OfficeVariances[[#Headers],[Kol]]),1),INDEX(OfficePlan[],,1),0),MATCH(OfficeVariances[[#Headers],[Kol]],OfficeActual[#Headers],0)) -> 600.00 kn | K18: =INDEX(OfficePlan[],MATCH(INDEX(OfficeVariances[],ROW()-ROW(OfficeVariances[[#Headers],[Ruj]]),1),INDEX(OfficePlan[],,1),0),MATCH(OfficeVariances[[#Headers],[Ruj]],OfficePlan[#Headers],0))-INDEX(OfficeActual[],MATCH(INDEX(OfficeVariances[],ROW()-ROW(OfficeVariances[[#Headers],[Ruj]]),1),INDEX(OfficePlan[],,1),0),MATCH(OfficeVariances[[#Headers],[Ruj]],OfficeActual[#Headers],0)) -> 600.00 kn | L18: =INDEX(OfficePlan[],MATCH(INDEX(OfficeVariances[],ROW()-ROW(OfficeVariances[[#Headers],[Lis]]),1),INDEX(OfficePlan[],,1),0),MATCH(OfficeVariances[[#Headers],[Lis]],OfficePlan[#Headers],0))-INDEX(OfficeActual[],MATCH(INDEX(OfficeVariances[],ROW()-ROW(OfficeVariances[[#Headers],[Lis]]),1),INDEX(OfficePlan[],,1),0),MATCH(OfficeVariances[[#Headers],[Lis]],OfficeActual[#Headers],0)) -> 600.00 kn | M18: =INDEX(OfficePlan[],MATCH(INDEX(OfficeVariances[],ROW()-ROW(OfficeVariances[[#Headers],[Stu]]),1),INDEX(OfficePlan[],,1),0),MATCH(OfficeVariances[[#Headers],[Stu]],OfficePlan[#Headers],0))-INDEX(OfficeActual[],MATCH(INDEX(OfficeVariances[],ROW()-ROW(OfficeVariances[[#Headers],[Stu]]),1),INDEX(OfficePlan[],,1),0),MATCH(OfficeVariances[[#Headers],[Stu]],OfficeActual[#Headers],0)) -> 600.00 kn | N18: =INDEX(OfficePlan[],MATCH(INDEX(OfficeVariances[],ROW()-ROW(OfficeVariances[[#Headers],[Pro]]),1),INDEX(OfficePlan[],,1),0),MATCH(OfficeVariances[[#Headers],[Pro]],OfficePlan[#Headers],0))-INDEX(OfficeActual[],MATCH(INDEX(OfficeVariances[],ROW()-ROW(OfficeVariances[[#Headers],[Pro]]),1),INDEX(OfficePlan[],,1),0),MATCH(OfficeVariances[[#Headers],[Pro]],OfficeActual[#Headers],0)) -> 600.00 kn | O18: =SUM(OfficeVariances[[#This Row],[Sij]:[Pro]]) -> 3,600.00 kn
B19: Podzbroj | C19: =SUBTOTAL(109,OfficeVariances[Sij]) -> -17.00 kn | D19: =SUBTOTAL(109,OfficeVariances[Velj]) -> 72.00 kn | E19: =SUBTOTAL(109,OfficeVariances[Ožu]) -> 78.00 kn | F19: =SUBTOTAL(109,OfficeVariances[Tra]) -> -141.00 kn | G19: =SUBTOTAL(109,OfficeVariances[Svi]) -> -38.00 kn | H19: =SUBTOTAL(109,OfficeVariances[Lip]) -> 16.00 kn | I19: =SUBTOTAL(109,OfficeVariances[Srp]) -> 11,470.00 kn | J19: =SUBTOTAL(109,OfficeVariances[Kol]) -> 11,470.00 kn | K19: =SUBTOTAL(109,OfficeVariances[Ruj]) -> 11,470.00 kn | L19: =SUBTOTAL(109,OfficeVariances[Lis]) -> 11,470.00 kn | M19: =SUBTOTAL(109,OfficeVariances[Stu]) -> 11,770.00 kn | N19: =SUBTOTAL(109,OfficeVariances[Pro]) -> 11,770.00 kn | O19: =SUBTOTAL(109,OfficeVariances[GODINA]) -> 69,390.00 kn
A21: Odstupanje u troškovima marketinga automatski se izračunava u tablici Odstupanja za marketing koja počinje ćelijom zdesna. Sljedeća je uputa u ćeliji A30. | B21: Troškovi marketinga | C21: Sij | D21: Velj | E21: Ožu | F21: Tra | G21: Svi | H21: Lip | I21: Srp | J21: Kol | K21: Ruj | L21: Lis | M21: Stu | N21: Pro | O21: GODINA
B22: Hostiranje web-mjesta | C22: =INDEX(MarketingPlan[],MATCH(INDEX(MarketingVariances[],ROW()-ROW(MarketingVariances[[#Headers],[Sij]]),1),INDEX(MarketingPlan[],,1),0),MATCH(MarketingVariances[[#Headers],[Sij]],MarketingPlan[#Headers],0))-INDEX(MarketingActual[],MATCH(INDEX(MarketingVariances[],ROW()-ROW(MarketingVariances[[#Headers],[Sij]]),1),INDEX(MarketingPlan[],,1),0),MATCH(MarketingVariances[[#Headers],[Sij]],MarketingActual[#Headers],0)) -> 0.00 kn | D22: =INDEX(MarketingPlan[],MATCH(INDEX(MarketingVariances[],ROW()-ROW(MarketingVariances[[#Headers],[Velj]]),1),INDEX(MarketingPlan[],,1),0),MATCH(MarketingVariances[[#Headers],[Velj]],MarketingPlan[#Headers],0))-INDEX(MarketingActual[],MATCH(INDEX(MarketingVariances[],ROW()-ROW(MarketingVariances[[#Headers],[Velj]]),1),INDEX(MarketingPlan[],,1),0),MATCH(MarketingVariances[[#Headers],[Velj]],MarketingActual[#Headers],0)) -> 0.00 kn | E22: =INDEX(MarketingPlan[],MATCH(INDEX(MarketingVariances[],ROW()-ROW(MarketingVariances[[#Headers],[Ožu]]),1),INDEX(MarketingPlan[],,1),0),MATCH(MarketingVariances[[#Headers],[Ožu]],MarketingPlan[#Headers],0))-INDEX(MarketingActual[],MATCH(INDEX(MarketingVariances[],ROW()-ROW(MarketingVariances[[#Headers],[Ožu]]),1),INDEX(MarketingPlan[],,1),0),MATCH(MarketingVariances[[#Headers],[Ožu]],MarketingActual[#Headers],0)) -> 0.00 kn | F22: =INDEX(MarketingPlan[],MATCH(INDEX(MarketingVariances[],ROW()-ROW(MarketingVariances[[#Headers],[Tra]]),1),INDEX(MarketingPlan[],,1),0),MATCH(MarketingVariances[[#Headers],[Tra]],MarketingPlan[#Headers],0))-INDEX(MarketingActual[],MATCH(INDEX(MarketingVariances[],ROW()-ROW(MarketingVariances[[#Headers],[Tra]]),1),INDEX(MarketingPlan[],,1),0),MATCH(MarketingVariances[[#Headers],[Tra]],MarketingActual[#Headers],0)) -> 0.00 kn | G22: =INDEX(MarketingPlan[],MATCH(INDEX(MarketingVariances[],ROW()-ROW(MarketingVariances[[#Headers],[Svi]]),1),INDEX(MarketingPlan[],,1),0),MATCH(MarketingVariances[[#Headers],[Svi]],MarketingPlan[#Headers],0))-INDEX(MarketingActual[],MATCH(INDEX(MarketingVariances[],ROW()-ROW(MarketingVariances[[#Headers],[Svi]]),1),INDEX(MarketingPlan[],,1),0),MATCH(MarketingVariances[[#Headers],[Svi]],MarketingActual[#Headers],0)) -> 0.00 kn | H22: =INDEX(MarketingPlan[],MATCH(INDEX(MarketingVariances[],ROW()-ROW(MarketingVariances[[#Headers],[Lip]]),1),INDEX(MarketingPlan[],,1),0),MATCH(MarketingVariances[[#Headers],[Lip]],MarketingPlan[#Headers],0))-INDEX(MarketingActual[],MATCH(INDEX(MarketingVariances[],ROW()-ROW(MarketingVariances[[#Headers],[Lip]]),1),INDEX(MarketingPlan[],,1),0),MATCH(MarketingVariances[[#Headers],[Lip]],MarketingActual[#Headers],0)) -> 0.00 kn | I22: =INDEX(MarketingPlan[],MATCH(INDEX(MarketingVariances[],ROW()-ROW(MarketingVariances[[#Headers],[Srp]]),1),INDEX(MarketingPlan[],,1),0),MATCH(MarketingVariances[[#Headers],[Srp]],MarketingPlan[#Headers],0))-INDEX(MarketingActual[],MATCH(INDEX(MarketingVariances[],ROW()-ROW(MarketingVariances[[#Headers],[Srp]]),1),INDEX(MarketingPlan[],,1),0),MATCH(MarketingVariances[[#Headers],[Srp]],MarketingActual[#Headers],0)) -> 500.00 kn | J22: =INDEX(MarketingPlan[],MATCH(INDEX(MarketingVariances[],ROW()-ROW(MarketingVariances[[#Headers],[Kol]]),1),INDEX(MarketingPlan[],,1),0),MATCH(MarketingVariances[[#Headers],[Kol]],MarketingPlan[#Headers],0))-INDEX(MarketingActual[],MATCH(INDEX(MarketingVariances[],ROW()-ROW(MarketingVariances[[#Headers],[Kol]]),1),INDEX(MarketingPlan[],,1),0),MATCH(MarketingVariances[[#Headers],[Kol]],MarketingActual[#Headers],0)) -> 500.00 kn | K22: =INDEX(MarketingPlan[],MATCH(INDEX(MarketingVariances[],ROW()-ROW(MarketingVariances[[#Headers],[Ruj]]),1),INDEX(MarketingPlan[],,1),0),MATCH(MarketingVariances[[#Headers],[Ruj]],MarketingPlan[#Headers],0))-INDEX(MarketingActual[],MATCH(INDEX(MarketingVariances[],ROW()-ROW(MarketingVariances[[#Headers],[Ruj]]),1),INDEX(MarketingPlan[],,1),0),MATCH(MarketingVariances[[#Headers],[Ruj]],MarketingActual[#Headers],0)) -> 500.00 kn | L22: =INDEX(MarketingPlan[],MATCH(INDEX(MarketingVariances[],ROW()-ROW(MarketingVariances[[#Headers],[Lis]]),1),INDEX(MarketingPlan[],,1),0),MATCH(MarketingVariances[[#Headers],[Lis]],MarketingPlan[#Headers],0))-INDEX(MarketingActual[],MATCH(INDEX(MarketingVariances[],ROW()-ROW(MarketingVariances[[#Headers],[Lis]]),1),INDEX(MarketingPlan[],,1),0),MATCH(MarketingVariances[[#Headers],[Lis]],MarketingActual[#Headers],0)) -> 500.00 kn | M22: =INDEX(MarketingPlan[],MATCH(INDEX(MarketingVariances[],ROW()-ROW(MarketingVariances[[#Headers],[Stu]]),1),INDEX(MarketingPlan[],,1),0),MATCH(MarketingVariances[[#Headers],[Stu]],MarketingPlan[#Headers],0))-INDEX(MarketingActual[],MATCH(INDEX(MarketingVariances[],ROW()-ROW(MarketingVariances[[#Headers],[Stu]]),1),INDEX(MarketingPlan[],,1),0),MATCH(MarketingVariances[[#Headers],[Stu]],MarketingActual[#Headers],0)) -> 500.00 kn | N22: =INDEX(MarketingPlan[],MATCH(INDEX(MarketingVariances[],ROW()-ROW(MarketingVariances[[#Headers],[Pro]]),1),INDEX(MarketingPlan[],,1),0),MATCH(MarketingVariances[[#Headers],[Pro]],MarketingPlan[#Headers],0))-INDEX(MarketingActual[],MATCH(INDEX(MarketingVariances[],ROW()-ROW(MarketingVariances[[#Headers],[Pro]]),1),INDEX(MarketingPlan[],,1),0),MATCH(MarketingVariances[[#Headers],[Pro]],MarketingActual[#Headers],0)) -> 500.00 kn | O22: =SUM(MarketingVariances[[#This Row],[Sij]:[Pro]]) -> 3,000.00 kn
B23: Ažuriranje web-mjesta | C23: =INDEX(MarketingPlan[],MATCH(INDEX(MarketingVariances[],ROW()-ROW(MarketingVariances[[#Headers],[Sij]]),1),INDEX(MarketingPlan[],,1),0),MATCH(MarketingVariances[[#Headers],[Sij]],MarketingPlan[#Headers],0))-INDEX(MarketingActual[],MATCH(INDEX(MarketingVariances[],ROW()-ROW(MarketingVariances[[#Headers],[Sij]]),1),INDEX(MarketingPlan[],,1),0),MATCH(MarketingVariances[[#Headers],[Sij]],MarketingActual[#Headers],0)) -> 0.00 kn | D23: =INDEX(MarketingPlan[],MATCH(INDEX(MarketingVariances[],ROW()-ROW(MarketingVariances[[#Headers],[Velj]]),1),INDEX(MarketingPlan[],,1),0),MATCH(MarketingVariances[[#Headers],[Velj]],MarketingPlan[#Headers],0))-INDEX(MarketingActual[],MATCH(INDEX(MarketingVariances[],ROW()-ROW(MarketingVariances[[#Headers],[Velj]]),1),INDEX(MarketingPlan[],,1),0),MATCH(MarketingVariances[[#Headers],[Velj]],MarketingActual[#Headers],0)) -> 0.00 kn | E23: =INDEX(MarketingPlan[],MATCH(INDEX(MarketingVariances[],ROW()-ROW(MarketingVariances[[#Headers],[Ožu]]),1),INDEX(MarketingPlan[],,1),0),MATCH(MarketingVariances[[#Headers],[Ožu]],MarketingPlan[#Headers],0))-INDEX(MarketingActual[],MATCH(INDEX(MarketingVariances[],ROW()-ROW(MarketingVariances[[#Headers],[Ožu]]),1),INDEX(MarketingPlan[],,1),0),MATCH(MarketingVariances[[#Headers],[Ožu]],MarketingActual[#Headers],0)) -> 0.00 kn | F23: =INDEX(MarketingPlan[],MATCH(INDEX(MarketingVariances[],ROW()-ROW(MarketingVariances[[#Headers],[Tra]]),1),INDEX(MarketingPlan[],,1),0),MATCH(MarketingVariances[[#Headers],[Tra]],MarketingPlan[#Headers],0))-INDEX(MarketingActual[],MATCH(INDEX(MarketingVariances[],ROW()-ROW(MarketingVariances[[#Headers],[Tra]]),1),INDEX(MarketingPlan[],,1),0),MATCH(MarketingVariances[[#Headers],[Tra]],MarketingActual[#Headers],0)) -> 0.00 kn | G23: =INDEX(MarketingPlan[],MATCH(INDEX(MarketingVariances[],ROW()-ROW(MarketingVariances[[#Headers],[Svi]]),1),INDEX(MarketingPlan[],,1),0),MATCH(MarketingVariances[[#Headers],[Svi]],MarketingPlan[#Headers],0))-INDEX(MarketingActual[],MATCH(INDEX(MarketingVariances[],ROW()-ROW(MarketingVariances[[#Headers],[Svi]]),1),INDEX(MarketingPlan[],,1),0),MATCH(MarketingVariances[[#Headers],[Svi]],MarketingActual[#Headers],0)) -> 0.00 kn | H23: =INDEX(MarketingPlan[],MATCH(INDEX(MarketingVariances[],ROW()-ROW(MarketingVariances[[#Headers],[Lip]]),1),INDEX(MarketingPlan[],,1),0),MATCH(MarketingVariances[[#Headers],[Lip]],MarketingPlan[#Headers],0))-INDEX(MarketingActual[],MATCH(INDEX(MarketingVariances[],ROW()-ROW(MarketingVariances[[#Headers],[Lip]]),1),INDEX(MarketingPlan[],,1),0),MATCH(MarketingVariances[[#Headers],[Lip]],MarketingActual[#Headers],0)) -> -500.00 kn | I23: =INDEX(MarketingPlan[],MATCH(INDEX(MarketingVariances[],ROW()-ROW(MarketingVariances[[#Headers],[Srp]]),1),INDEX(MarketingPlan[],,1),0),MATCH(MarketingVariances[[#Headers],[Srp]],MarketingPlan[#Headers],0))-INDEX(MarketingActual[],MATCH(INDEX(MarketingVariances[],ROW()-ROW(MarketingVariances[[#Headers],[Srp]]),1),INDEX(MarketingPlan[],,1),0),MATCH(MarketingVariances[[#Headers],[Srp]],MarketingActual[#Headers],0)) -> 200.00 kn | J23: =INDEX(MarketingPlan[],MATCH(INDEX(MarketingVariances[],ROW()-ROW(MarketingVariances[[#Headers],[Kol]]),1),INDEX(MarketingPlan[],,1),0),MATCH(MarketingVariances[[#Headers],[Kol]],MarketingPlan[#Headers],0))-INDEX(MarketingActual[],MATCH(INDEX(MarketingVariances[],ROW()-ROW(MarketingVariances[[#Headers],[Kol]]),1),INDEX(MarketingPlan[],,1),0),MATCH(MarketingVariances[[#Headers],[Kol]],MarketingActual[#Headers],0)) -> 200.00 kn | K23: =INDEX(MarketingPlan[],MATCH(INDEX(MarketingVariances[],ROW()-ROW(MarketingVariances[[#Headers],[Ruj]]),1),INDEX(MarketingPlan[],,1),0),MATCH(MarketingVariances[[#Headers],[Ruj]],MarketingPlan[#Headers],0))-INDEX(MarketingActual[],MATCH(INDEX(MarketingVariances[],ROW()-ROW(MarketingVariances[[#Headers],[Ruj]]),1),INDEX(MarketingPlan[],,1),0),MATCH(MarketingVariances[[#Headers],[Ruj]],MarketingActual[#Headers],0)) -> 200.00 kn | L23: =INDEX(MarketingPlan[],MATCH(INDEX(MarketingVariances[],ROW()-ROW(MarketingVariances[[#Headers],[Lis]]),1),INDEX(MarketingPlan[],,1),0),MATCH(MarketingVariances[[#Headers],[Lis]],MarketingPlan[#Headers],0))-INDEX(MarketingActual[],MATCH(INDEX(MarketingVariances[],ROW()-ROW(MarketingVariances[[#Headers],[Lis]]),1),INDEX(MarketingPlan[],,1),0),MATCH(MarketingVariances[[#Headers],[Lis]],MarketingActual[#Headers],0)) -> 200.00 kn | M23: =INDEX(MarketingPlan[],MATCH(INDEX(MarketingVariances[],ROW()-ROW(MarketingVariances[[#Headers],[Stu]]),1),INDEX(MarketingPlan[],,1),0),MATCH(MarketingVariances[[#Headers],[Stu]],MarketingPlan[#Headers],0))-INDEX(MarketingActual[],MATCH(INDEX(MarketingVariances[],ROW()-ROW(MarketingVariances[[#Headers],[Stu]]),1),INDEX(MarketingPlan[],,1),0),MATCH(MarketingVariances[[#Headers],[Stu]],MarketingActual[#Headers],0)) -> 200.00 kn | N23: =INDEX(MarketingPlan[],MATCH(INDEX(MarketingVariances[],ROW()-ROW(MarketingVariances[[#Headers],[Pro]]),1),INDEX(MarketingPlan[],,1),0),MATCH(MarketingVariances[[#Headers],[Pro]],MarketingPlan[#Headers],0))-INDEX(MarketingActual[],MATCH(INDEX(MarketingVariances[],ROW()-ROW(MarketingVariances[[#Headers],[Pro]]),1),INDEX(MarketingPlan[],,1),0),MATCH(MarketingVariances[[#Headers],[Pro]],MarketingActual[#Headers],0)) -> 1,000.00 kn | O23: =SUM(MarketingVariances[[#This Row],[Sij]:[Pro]]) -> 1,500.00 kn
B24: Priprema materijala | C24: =INDEX(MarketingPlan[],MATCH(INDEX(MarketingVariances[],ROW()-ROW(MarketingVariances[[#Headers],[Sij]]),1),INDEX(MarketingPlan[],,1),0),MATCH(MarketingVariances[[#Headers],[Sij]],MarketingPlan[#Headers],0))-INDEX(MarketingActual[],MATCH(INDEX(MarketingVariances[],ROW()-ROW(MarketingVariances[[#Headers],[Sij]]),1),INDEX(MarketingPlan[],,1),0),MATCH(MarketingVariances[[#Headers],[Sij]],MarketingActual[#Headers],0)) -> 200.00 kn | D24: =INDEX(MarketingPlan[],MATCH(INDEX(MarketingVariances[],ROW()-ROW(MarketingVariances[[#Headers],[Velj]]),1),INDEX(MarketingPlan[],,1),0),MATCH(MarketingVariances[[#Headers],[Velj]],MarketingPlan[#Headers],0))-INDEX(MarketingActual[],MATCH(INDEX(MarketingVariances[],ROW()-ROW(MarketingVariances[[#Headers],[Velj]]),1),INDEX(MarketingPlan[],,1),0),MATCH(MarketingVariances[[#Headers],[Velj]],MarketingActual[#Headers],0)) -> 0.00 kn | E24: =INDEX(MarketingPlan[],MATCH(INDEX(MarketingVariances[],ROW()-ROW(MarketingVariances[[#Headers],[Ožu]]),1),INDEX(MarketingPlan[],,1),0),MATCH(MarketingVariances[[#Headers],[Ožu]],MarketingPlan[#Headers],0))-INDEX(MarketingActual[],MATCH(INDEX(MarketingVariances[],ROW()-ROW(MarketingVariances[[#Headers],[Ožu]]),1),INDEX(MarketingPlan[],,1),0),MATCH(MarketingVariances[[#Headers],[Ožu]],MarketingActual[#Headers],0)) -> 0.00 kn | F24: =INDEX(MarketingPlan[],MATCH(INDEX(MarketingVariances[],ROW()-ROW(MarketingVariances[[#Headers],[Tra]]),1),INDEX(MarketingPlan[],,1),0),MATCH(MarketingVariances[[#Headers],[Tra]],MarketingPlan[#Headers],0))-INDEX(MarketingActual[],MATCH(INDEX(MarketingVariances[],ROW()-ROW(MarketingVariances[[#Headers],[Tra]]),1),INDEX(MarketingPlan[],,1),0),MATCH(MarketingVariances[[#Headers],[Tra]],MarketingActual[#Headers],0)) -> -500.00 kn | G24: =INDEX(MarketingPlan[],MATCH(INDEX(MarketingVariances[],ROW()-ROW(MarketingVariances[[#Headers],[Svi]]),1),INDEX(MarketingPlan[],,1),0),MATCH(MarketingVariances[[#Headers],[Svi]],MarketingPlan[#Headers],0))-INDEX(MarketingActual[],MATCH(INDEX(MarketingVariances[],ROW()-ROW(MarketingVariances[[#Headers],[Svi]]),1),INDEX(MarketingPlan[],,1),0),MATCH(MarketingVariances[[#Headers],[Svi]],MarketingActual[#Headers],0)) -> 0.00 kn | H24: =INDEX(MarketingPlan[],MATCH(INDEX(MarketingVariances[],ROW()-ROW(MarketingVariances[[#Headers],[Lip]]),1),INDEX(MarketingPlan[],,1),0),MATCH(MarketingVariances[[#Headers],[Lip]],MarketingPlan[#Headers],0))-INDEX(MarketingActual[],MATCH(INDEX(MarketingVariances[],ROW()-ROW(MarketingVariances[[#Headers],[Lip]]),1),INDEX(MarketingPlan[],,1),0),MATCH(MarketingVariances[[#Headers],[Lip]],MarketingActual[#Headers],0)) -> 0.00 kn | I24: =INDEX(MarketingPlan[],MATCH(INDEX(MarketingVariances[],ROW()-ROW(MarketingVariances[[#Headers],[Srp]]),1),INDEX(MarketingPlan[],,1),0),MATCH(MarketingVariances[[#Headers],[Srp]],MarketingPlan[#Headers],0))-INDEX(MarketingActual[],MATCH(INDEX(MarketingVariances[],ROW()-ROW(MarketingVariances[[#Headers],[Srp]]),1),INDEX(MarketingPlan[],,1),0),MATCH(MarketingVariances[[#Headers],[Srp]],MarketingActual[#Headers],0)) -> 5,000.00 kn | J24: =INDEX(MarketingPlan[],MATCH(INDEX(MarketingVariances[],ROW()-ROW(MarketingVariances[[#Headers],[Kol]]),1),INDEX(MarketingPlan[],,1),0),MATCH(MarketingVariances[[#Headers],[Kol]],MarketingPlan[#Headers],0))-INDEX(MarketingActual[],MATCH(INDEX(MarketingVariances[],ROW()-ROW(MarketingVariances[[#Headers],[Kol]]),1),INDEX(MarketingPlan[],,1),0),MATCH(MarketingVariances[[#Headers],[Kol]],MarketingActual[#Headers],0)) -> 0.00 kn | K24: =INDEX(MarketingPlan[],MATCH(INDEX(MarketingVariances[],ROW()-ROW(MarketingVariances[[#Headers],[Ruj]]),1),INDEX(MarketingPlan[],,1),0),MATCH(MarketingVariances[[#Headers],[Ruj]],MarketingPlan[#Headers],0))-INDEX(MarketingActual[],MATCH(INDEX(MarketingVariances[],ROW()-ROW(MarketingVariances[[#Headers],[Ruj]]),1),INDEX(MarketingPlan[],,1),0),MATCH(MarketingVariances[[#Headers],[Ruj]],MarketingActual[#Headers],0)) -> 0.00 kn | L24: =INDEX(MarketingPlan[],MATCH(INDEX(MarketingVariances[],ROW()-ROW(MarketingVariances[[#Headers],[Lis]]),1),INDEX(MarketingPlan[],,1),0),MATCH(MarketingVariances[[#Headers],[Lis]],MarketingPlan[#Headers],0))-INDEX(MarketingActual[],MATCH(INDEX(MarketingVariances[],ROW()-ROW(MarketingVariances[[#Headers],[Lis]]),1),INDEX(MarketingPlan[],,1),0),MATCH(MarketingVariances[[#Headers],[Lis]],MarketingActual[#Headers],0)) -> 5,000.00 kn | M24: =INDEX(MarketingPlan[],MATCH(INDEX(MarketingVariances[],ROW()-ROW(MarketingVariances[[#Headers],[Stu]]),1),INDEX(MarketingPlan[],,1),0),MATCH(MarketingVariances[[#Headers],[Stu]],MarketingPlan[#Headers],0))-INDEX(MarketingActual[],MATCH(INDEX(MarketingVariances[],ROW()-ROW(MarketingVariances[[#Headers],[Stu]]),1),INDEX(MarketingPlan[],,1),0),MATCH(MarketingVariances[[#Headers],[Stu]],MarketingActual[#Headers],0)) -> 0.00 kn | N24: =INDEX(MarketingPlan[],MATCH(INDEX(MarketingVariances[],ROW()-ROW(MarketingVariances[[#Headers],[Pro]]),1),INDEX(MarketingPlan[],,1),0),MATCH(MarketingVariances[[#Headers],[Pro]],MarketingPlan[#Headers],0))-INDEX(MarketingActual[],MATCH(INDEX(MarketingVariances[],ROW()-ROW(MarketingVariances[[#Headers],[Pro]]),1),INDEX(MarketingPlan[],,1),0),MATCH(MarketingVariances[[#Headers],[Pro]],MarketingActual[#Headers],0)) -> 0.00 kn | O24: =SUM(MarketingVariances[[#This Row],[Sij]:[Pro]]) -> 9,700.00 kn
B25: Ispis materijala | C25: =INDEX(MarketingPlan[],MATCH(INDEX(MarketingVariances[],ROW()-ROW(MarketingVariances[[#Headers],[Sij]]),1),INDEX(MarketingPlan[],,1),0),MATCH(MarketingVariances[[#Headers],[Sij]],MarketingPlan[#Headers],0))-INDEX(MarketingActual[],MATCH(INDEX(MarketingVariances[],ROW()-ROW(MarketingVariances[[#Headers],[Sij]]),1),INDEX(MarketingPlan[],,1),0),MATCH(MarketingVariances[[#Headers],[Sij]],MarketingActual[#Headers],0)) -> 100.00 kn | D25: =INDEX(MarketingPlan[],MATCH(INDEX(MarketingVariances[],ROW()-ROW(MarketingVariances[[#Headers],[Velj]]),1),INDEX(MarketingPlan[],,1),0),MATCH(MarketingVariances[[#Headers],[Velj]],MarketingPlan[#Headers],0))-INDEX(MarketingActual[],MATCH(INDEX(MarketingVariances[],ROW()-ROW(MarketingVariances[[#Headers],[Velj]]),1),INDEX(MarketingPlan[],,1),0),MATCH(MarketingVariances[[#Headers],[Velj]],MarketingActual[#Headers],0)) -> -300.00 kn | E25: =INDEX(MarketingPlan[],MATCH(INDEX(MarketingVariances[],ROW()-ROW(MarketingVariances[[#Headers],[Ožu]]),1),INDEX(MarketingPlan[],,1),0),MATCH(MarketingVariances[[#Headers],[Ožu]],MarketingPlan[#Headers],0))-INDEX(MarketingActual[],MATCH(INDEX(MarketingVariances[],ROW()-ROW(MarketingVariances[[#Headers],[Ožu]]),1),INDEX(MarketingPlan[],,1),0),MATCH(MarketingVariances[[#Headers],[Ožu]],MarketingActual[#Headers],0)) -> 100.00 kn | F25: =INDEX(MarketingPlan[],MATCH(INDEX(MarketingVariances[],ROW()-ROW(MarketingVariances[[#Headers],[Tra]]),1),INDEX(MarketingPlan[],,1),0),MATCH(MarketingVariances[[#Headers],[Tra]],MarketingPlan[#Headers],0))-INDEX(MarketingActual[],MATCH(INDEX(MarketingVariances[],ROW()-ROW(MarketingVariances[[#Headers],[Tra]]),1),INDEX(MarketingPlan[],,1),0),MATCH(MarketingVariances[[#Headers],[Tra]],MarketingActual[#Headers],0)) -> 100.00 kn | G25: =INDEX(MarketingPlan[],MATCH(INDEX(MarketingVariances[],ROW()-ROW(MarketingVariances[[#Headers],[Svi]]),1),INDEX(MarketingPlan[],,1),0),MATCH(MarketingVariances[[#Headers],[Svi]],MarketingPlan[#Headers],0))-INDEX(MarketingActual[],MATCH(INDEX(MarketingVariances[],ROW()-ROW(MarketingVariances[[#Headers],[Svi]]),1),INDEX(MarketingPlan[],,1),0),MATCH(MarketingVariances[[#Headers],[Svi]],MarketingActual[#Headers],0)) -> -400.00 kn | H25: =INDEX(MarketingPlan[],MATCH(INDEX(MarketingVariances[],ROW()-ROW(MarketingVariances[[#Headers],[Lip]]),1),INDEX(MarketingPlan[],,1),0),MATCH(MarketingVariances[[#Headers],[Lip]],MarketingPlan[#Headers],0))-INDEX(MarketingActual[],MATCH(INDEX(MarketingVariances[],ROW()-ROW(MarketingVariances[[#Headers],[Lip]]),1),INDEX(MarketingPlan[],,1),0),MATCH(MarketingVariances[[#Headers],[Lip]],MarketingActual[#Headers],0)) -> 20.00 kn | I25: =INDEX(MarketingPlan[],MATCH(INDEX(MarketingVariances[],ROW()-ROW(MarketingVariances[[#Headers],[Srp]]),1),INDEX(MarketingPlan[],,1),0),MATCH(MarketingVariances[[#Headers],[Srp]],MarketingPlan[#Headers],0))-INDEX(MarketingActual[],MATCH(INDEX(MarketingVariances[],ROW()-ROW(MarketingVariances[[#Headers],[Srp]]),1),INDEX(MarketingPlan[],,1),0),MATCH(MarketingVariances[[#Headers],[Srp]],MarketingActual[#Headers],0)) -> 200.00 kn | J25: =INDEX(MarketingPlan[],MATCH(INDEX(MarketingVariances[],ROW()-ROW(MarketingVariances[[#Headers],[Kol]]),1),INDEX(MarketingPlan[],,1),0),MATCH(MarketingVariances[[#Headers],[Kol]],MarketingPlan[#Headers],0))-INDEX(MarketingActual[],MATCH(INDEX(MarketingVariances[],ROW()-ROW(MarketingVariances[[#Headers],[Kol]]),1),INDEX(MarketingPlan[],,1),0),MATCH(MarketingVariances[[#Headers],[Kol]],MarketingActual[#Headers],0)) -> 200.00 kn | K25: =INDEX(MarketingPlan[],MATCH(INDEX(MarketingVariances[],ROW()-ROW(MarketingVariances[[#Headers],[Ruj]]),1),INDEX(MarketingPlan[],,1),0),MATCH(MarketingVariances[[#Headers],[Ruj]],MarketingPlan[#Headers],0))-INDEX(MarketingActual[],MATCH(INDEX(MarketingVariances[],ROW()-ROW(MarketingVariances[[#Headers],[Ruj]]),1),INDEX(MarketingPlan[],,1),0),MATCH(MarketingVariances[[#Headers],[Ruj]],MarketingActual[#Headers],0)) -> 200.00 kn | L25: =INDEX(MarketingPlan[],MATCH(INDEX(MarketingVariances[],ROW()-ROW(MarketingVariances[[#Headers],[Lis]]),1),INDEX(MarketingPlan[],,1),0),MATCH(MarketingVariances[[#Headers],[Lis]],MarketingPlan[#Headers],0))-INDEX(MarketingActual[],MATCH(INDEX(MarketingVariances[],ROW()-ROW(MarketingVariances[[#Headers],[Lis]]),1),INDEX(MarketingPlan[],,1),0),MATCH(MarketingVariances[[#Headers],[Lis]],MarketingActual[#Headers],0)) -> 200.00 kn | M25: =INDEX(MarketingPlan[],MATCH(INDEX(MarketingVariances[],ROW()-ROW(MarketingVariances[[#Headers],[Stu]]),1),INDEX(MarketingPlan[],,1),0),MATCH(MarketingVariances[[#Headers],[Stu]],MarketingPlan[#Headers],0))-INDEX(MarketingActual[],MATCH(INDEX(MarketingVariances[],ROW()-ROW(MarketingVariances[[#Headers],[Stu]]),1),INDEX(MarketingPlan[],,1),0),MATCH(MarketingVariances[[#Headers],[Stu]],MarketingActual[#Headers],0)) -> 200.00 kn | N25: =INDEX(MarketingPlan[],MATCH(INDEX(MarketingVariances[],ROW()-ROW(MarketingVariances[[#Headers],[Pro]]),1),INDEX(MarketingPlan[],,1),0),MATCH(MarketingVariances[[#Headers],[Pro]],MarketingPlan[#Headers],0))-INDEX(MarketingActual[],MATCH(INDEX(MarketingVariances[],ROW()-ROW(MarketingVariances[[#Headers],[Pro]]),1),INDEX(MarketingPlan[],,1),0),MATCH(MarketingVariances[[#Headers],[Pro]],MarketingActual[#Headers],0)) -> 200.00 kn | O25: =SUM(MarketingVariances[[#This Row],[Sij]:[Pro]]) -> 820.00 kn
B26: Marketinški događaji | C26: =INDEX(MarketingPlan[],MATCH(INDEX(MarketingVariances[],ROW()-ROW(MarketingVariances[[#Headers],[Sij]]),1),INDEX(MarketingPlan[],,1),0),MATCH(MarketingVariances[[#Headers],[Sij]],MarketingPlan[#Headers],0))-INDEX(MarketingActual[],MATCH(INDEX(MarketingVariances[],ROW()-ROW(MarketingVariances[[#Headers],[Sij]]),1),INDEX(MarketingPlan[],,1),0),MATCH(MarketingVariances[[#Headers],[Sij]],MarketingActual[#Headers],0)) -> 200.00 kn | D26: =INDEX(MarketingPlan[],MATCH(INDEX(MarketingVariances[],ROW()-ROW(MarketingVariances[[#Headers],[Velj]]),1),INDEX(MarketingPlan[],,1),0),MATCH(MarketingVariances[[#Headers],[Velj]],MarketingPlan[#Headers],0))-INDEX(MarketingActual[],MATCH(INDEX(MarketingVariances[],ROW()-ROW(MarketingVariances[[#Headers],[Velj]]),1),INDEX(MarketingPlan[],,1),0),MATCH(MarketingVariances[[#Headers],[Velj]],MarketingActual[#Headers],0)) -> -200.00 kn | E26: =INDEX(MarketingPlan[],MATCH(INDEX(MarketingVariances[],ROW()-ROW(MarketingVariances[[#Headers],[Ožu]]),1),INDEX(MarketingPlan[],,1),0),MATCH(MarketingVariances[[#Headers],[Ožu]],MarketingPlan[#Headers],0))-INDEX(MarketingActual[],MATCH(INDEX(MarketingVariances[],ROW()-ROW(MarketingVariances[[#Headers],[Ožu]]),1),INDEX(MarketingPlan[],,1),0),MATCH(MarketingVariances[[#Headers],[Ožu]],MarketingActual[#Headers],0)) -> -200.00 kn | F26: =INDEX(MarketingPlan[],MATCH(INDEX(MarketingVariances[],ROW()-ROW(MarketingVariances[[#Headers],[Tra]]),1),INDEX(MarketingPlan[],,1),0),MATCH(MarketingVariances[[#Headers],[Tra]],MarketingPlan[#Headers],0))-INDEX(MarketingActual[],MATCH(INDEX(MarketingVariances[],ROW()-ROW(MarketingVariances[[#Headers],[Tra]]),1),INDEX(MarketingPlan[],,1),0),MATCH(MarketingVariances[[#Headers],[Tra]],MarketingActual[#Headers],0)) -> 300.00 kn | G26: =INDEX(MarketingPlan[],MATCH(INDEX(MarketingVariances[],ROW()-ROW(MarketingVariances[[#Headers],[Svi]]),1),INDEX(MarketingPlan[],,1),0),MATCH(MarketingVariances[[#Headers],[Svi]],MarketingPlan[#Headers],0))-INDEX(MarketingActual[],MATCH(INDEX(MarketingVariances[],ROW()-ROW(MarketingVariances[[#Headers],[Svi]]),1),INDEX(MarketingPlan[],,1),0),MATCH(MarketingVariances[[#Headers],[Svi]],MarketingActual[#Headers],0)) -> 500.00 kn | H26: =INDEX(MarketingPlan[],MATCH(INDEX(MarketingVariances[],ROW()-ROW(MarketingVariances[[#Headers],[Lip]]),1),INDEX(MarketingPlan[],,1),0),MATCH(MarketingVariances[[#Headers],[Lip]],MarketingPlan[#Headers],0))-INDEX(MarketingActual[],MATCH(INDEX(MarketingVariances[],ROW()-ROW(MarketingVariances[[#Headers],[Lip]]),1),INDEX(MarketingPlan[],,1),0),MATCH(MarketingVariances[[#Headers],[Lip]],MarketingActual[#Headers],0)) -> -300.00 kn | I26: =INDEX(MarketingPlan[],MATCH(INDEX(MarketingVariances[],ROW()-ROW(MarketingVariances[[#Headers],[Srp]]),1),INDEX(MarketingPlan[],,1),0),MATCH(MarketingVariances[[#Headers],[Srp]],MarketingPlan[#Headers],0))-INDEX(MarketingActual[],MATCH(INDEX(MarketingVariances[],ROW()-ROW(MarketingVariances[[#Headers],[Srp]]),1),INDEX(MarketingPlan[],,1),0),MATCH(MarketingVariances[[#Headers],[Srp]],MarketingActual[#Headers],0)) -> 2,000.00 kn | J26: =INDEX(MarketingPlan[],MATCH(INDEX(MarketingVariances[],ROW()-ROW(MarketingVariances[[#Headers],[Kol]]),1),INDEX(MarketingPlan[],,1),0),MATCH(MarketingVariances[[#Headers],[Kol]],MarketingPlan[#Headers],0))-INDEX(MarketingActual[],MATCH(INDEX(MarketingVariances[],ROW()-ROW(MarketingVariances[[#Headers],[Kol]]),1),INDEX(MarketingPlan[],,1),0),MATCH(MarketingVariances[[#Headers],[Kol]],MarketingActual[#Headers],0)) -> 5,000.00 kn | K26: =INDEX(MarketingPlan[],MATCH(INDEX(MarketingVariances[],ROW()-ROW(MarketingVariances[[#Headers],[Ruj]]),1),INDEX(MarketingPlan[],,1),0),MATCH(MarketingVariances[[#Headers],[Ruj]],MarketingPlan[#Headers],0))-INDEX(MarketingActual[],MATCH(INDEX(MarketingVariances[],ROW()-ROW(MarketingVariances[[#Headers],[Ruj]]),1),INDEX(MarketingPlan[],,1),0),MATCH(MarketingVariances[[#Headers],[Ruj]],MarketingActual[#Headers],0)) -> 2,000.00 kn | L26: =INDEX(MarketingPlan[],MATCH(INDEX(MarketingVariances[],ROW()-ROW(MarketingVariances[[#Headers],[Lis]]),1),INDEX(MarketingPlan[],,1),0),MATCH(MarketingVariances[[#Headers],[Lis]],MarketingPlan[#Headers],0))-INDEX(MarketingActual[],MATCH(INDEX(MarketingVariances[],ROW()-ROW(MarketingVariances[[#Headers],[Lis]]),1),INDEX(MarketingPlan[],,1),0),MATCH(MarketingVariances[[#Headers],[Lis]],MarketingActual[#Headers],0)) -> 2,000.00 kn | M26: =INDEX(MarketingPlan[],MATCH(INDEX(MarketingVariances[],ROW()-ROW(MarketingVariances[[#Headers],[Stu]]),1),INDEX(MarketingPlan[],,1),0),MATCH(MarketingVariances[[#Headers],[Stu]],MarketingPlan[#Headers],0))-INDEX(MarketingActual[],MATCH(INDEX(MarketingVariances[],ROW()-ROW(MarketingVariances[[#Headers],[Stu]]),1),INDEX(MarketingPlan[],,1),0),MATCH(MarketingVariances[[#Headers],[Stu]],MarketingActual[#Headers],0)) -> 2,000.00 kn | N26: =INDEX(MarketingPlan[],MATCH(INDEX(MarketingVariances[],ROW()-ROW(MarketingVariances[[#Headers],[Pro]]),1),INDEX(MarketingPlan[],,1),0),MATCH(MarketingVariances[[#Headers],[Pro]],MarketingPlan[#Headers],0))-INDEX(MarketingActual[],MATCH(INDEX(MarketingVariances[],ROW()-ROW(MarketingVariances[[#Headers],[Pro]]),1),INDEX(MarketingPlan[],,1),0),MATCH(MarketingVariances[[#Headers],[Pro]],MarketingActual[#Headers],0)) -> 5,000.00 kn | O26: =SUM(MarketingVariances[[#This Row],[Sij]:[Pro]]) -> 18,300.00 kn
B27: Razni izdaci | C27: =INDEX(MarketingPlan[],MATCH(INDEX(MarketingVariances[],ROW()-ROW(MarketingVariances[[#Headers],[Sij]]),1),INDEX(MarketingPlan[],,1),0),MATCH(MarketingVariances[[#Headers],[Sij]],MarketingPlan[#Headers],0))-INDEX(MarketingActual[],MATCH(INDEX(MarketingVariances[],ROW()-ROW(MarketingVariances[[#Headers],[Sij]]),1),INDEX(MarketingPlan[],,1),0),MATCH(MarketingVariances[[#Headers],[Sij]],MarketingActual[#Headers],0)) -> 55.00 kn | D27: =INDEX(MarketingPlan[],MATCH(INDEX(MarketingVariances[],ROW()-ROW(MarketingVariances[[#Headers],[Velj]]),1),INDEX(MarketingPlan[],,1),0),MATCH(MarketingVariances[[#Headers],[Velj]],MarketingPlan[#Headers],0))-INDEX(MarketingActual[],MATCH(INDEX(MarketingVariances[],ROW()-ROW(MarketingVariances[[#Headers],[Velj]]),1),INDEX(MarketingPlan[],,1),0),MATCH(MarketingVariances[[#Headers],[Velj]],MarketingActual[#Headers],0)) -> 44.00 kn | E27: =INDEX(MarketingPlan[],MATCH(INDEX(MarketingVariances[],ROW()-ROW(MarketingVariances[[#Headers],[Ožu]]),1),INDEX(MarketingPlan[],,1),0),MATCH(MarketingVariances[[#Headers],[Ožu]],MarketingPlan[#Headers],0))-INDEX(MarketingActual[],MATCH(INDEX(MarketingVariances[],ROW()-ROW(MarketingVariances[[#Headers],[Ožu]]),1),INDEX(MarketingPlan[],,1),0),MATCH(MarketingVariances[[#Headers],[Ožu]],MarketingActual[#Headers],0)) -> 77.00 kn | F27: =INDEX(MarketingPlan[],MATCH(INDEX(MarketingVariances[],ROW()-ROW(MarketingVariances[[#Headers],[Tra]]),1),INDEX(MarketingPlan[],,1),0),MATCH(MarketingVariances[[#Headers],[Tra]],MarketingPlan[#Headers],0))-INDEX(MarketingActual[],MATCH(INDEX(MarketingVariances[],ROW()-ROW(MarketingVariances[[#Headers],[Tra]]),1),INDEX(MarketingPlan[],,1),0),MATCH(MarketingVariances[[#Headers],[Tra]],MarketingActual[#Headers],0)) -> -23.00 kn | G27: =INDEX(MarketingPlan[],MATCH(INDEX(MarketingVariances[],ROW()-ROW(MarketingVariances[[#Headers],[Svi]]),1),INDEX(MarketingPlan[],,1),0),MATCH(MarketingVariances[[#Headers],[Svi]],MarketingPlan[#Headers],0))-INDEX(MarketingActual[],MATCH(INDEX(MarketingVariances[],ROW()-ROW(MarketingVariances[[#Headers],[Svi]]),1),INDEX(MarketingPlan[],,1),0),MATCH(MarketingVariances[[#Headers],[Svi]],MarketingActual[#Headers],0)) -> 13.00 kn | H27: =INDEX(MarketingPlan[],MATCH(INDEX(MarketingVariances[],ROW()-ROW(MarketingVariances[[#Headers],[Lip]]),1),INDEX(MarketingPlan[],,1),0),MATCH(MarketingVariances[[#Headers],[Lip]],MarketingPlan[#Headers],0))-INDEX(MarketingActual[],MATCH(INDEX(MarketingVariances[],ROW()-ROW(MarketingVariances[[#Headers],[Lip]]),1),INDEX(MarketingPlan[],,1),0),MATCH(MarketingVariances[[#Headers],[Lip]],MarketingActual[#Headers],0)) -> -45.00 kn | I27: =INDEX(MarketingPlan[],MATCH(INDEX(MarketingVariances[],ROW()-ROW(MarketingVariances[[#Headers],[Srp]]),1),INDEX(MarketingPlan[],,1),0),MATCH(MarketingVariances[[#Headers],[Srp]],MarketingPlan[#Headers],0))-INDEX(MarketingActual[],MATCH(INDEX(MarketingVariances[],ROW()-ROW(MarketingVariances[[#Headers],[Srp]]),1),INDEX(MarketingPlan[],,1),0),MATCH(MarketingVariances[[#Headers],[Srp]],MarketingActual[#Headers],0)) -> 200.00 kn | J27: =INDEX(MarketingPlan[],MATCH(INDEX(MarketingVariances[],ROW()-ROW(MarketingVariances[[#Headers],[Kol]]),1),INDEX(MarketingPlan[],,1),0),MATCH(MarketingVariances[[#Headers],[Kol]],MarketingPlan[#Headers],0))-INDEX(MarketingActual[],MATCH(INDEX(MarketingVariances[],ROW()-ROW(MarketingVariances[[#Headers],[Kol]]),1),INDEX(MarketingPlan[],,1),0),MATCH(MarketingVariances[[#Headers],[Kol]],MarketingActual[#Headers],0)) -> 200.00 kn | K27: =INDEX(MarketingPlan[],MATCH(INDEX(MarketingVariances[],ROW()-ROW(MarketingVariances[[#Headers],[Ruj]]),1),INDEX(MarketingPlan[],,1),0),MATCH(MarketingVariances[[#Headers],[Ruj]],MarketingPlan[#Headers],0))-INDEX(MarketingActual[],MATCH(INDEX(MarketingVariances[],ROW()-ROW(MarketingVariances[[#Headers],[Ruj]]),1),INDEX(MarketingPlan[],,1),0),MATCH(MarketingVariances[[#Headers],[Ruj]],MarketingActual[#Headers],0)) -> 200.00 kn | L27: =INDEX(MarketingPlan[],MATCH(INDEX(MarketingVariances[],ROW()-ROW(MarketingVariances[[#Headers],[Lis]]),1),INDEX(MarketingPlan[],,1),0),MATCH(MarketingVariances[[#Headers],[Lis]],MarketingPlan[#Headers],0))-INDEX(MarketingActual[],MATCH(INDEX(MarketingVariances[],ROW()-ROW(MarketingVariances[[#Headers],[Lis]]),1),INDEX(MarketingPlan[],,1),0),MATCH(MarketingVariances[[#Headers],[Lis]],MarketingActual[#Headers],0)) -> 200.00 kn | M27: =INDEX(MarketingPlan[],MATCH(INDEX(MarketingVariances[],ROW()-ROW(MarketingVariances[[#Headers],[Stu]]),1),INDEX(MarketingPlan[],,1),0),MATCH(MarketingVariances[[#Headers],[Stu]],MarketingPlan[#Headers],0))-INDEX(MarketingActual[],MATCH(INDEX(MarketingVariances[],ROW()-ROW(MarketingVariances[[#Headers],[Stu]]),1),INDEX(MarketingPlan[],,1),0),MATCH(MarketingVariances[[#Headers],[Stu]],MarketingActual[#Headers],0)) -> 200.00 kn | N27: =INDEX(MarketingPlan[],MATCH(INDEX(MarketingVariances[],ROW()-ROW(MarketingVariances[[#Headers],[Pro]]),1),INDEX(MarketingPlan[],,1),0),MATCH(MarketingVariances[[#Headers],[Pro]],MarketingPlan[#Headers],0))-INDEX(MarketingActual[],MATCH(INDEX(MarketingVariances[],ROW()-ROW(MarketingVariances[[#Headers],[Pro]]),1),INDEX(MarketingPlan[],,1),0),MATCH(MarketingVariances[[#Headers],[Pro]],MarketingActual[#Headers],0)) -> 200.00 kn | O27: =SUM(MarketingVariances[[#This Row],[Sij]:[Pro]]) -> 1,321.00 kn
B28: Podzbroj | C28: =SUBTOTAL(109,MarketingVariances[Sij]) -> 555.00 kn | D28: =SUBTOTAL(109,MarketingVariances[Velj]) -> -456.00 kn | E28: =SUBTOTAL(109,MarketingVariances[Ožu]) -> -23.00 kn | F28: =SUBTOTAL(109,MarketingVariances[Tra]) -> -123.00 kn | G28: =SUBTOTAL(109,MarketingVariances[Svi]) -> 113.00 kn | H28: =SUBTOTAL(109,MarketingVariances[Lip]) -> -825.00 kn | I28: =SUBTOTAL(109,MarketingVariances[Srp]) -> 8,100.00 kn | J28: =SUBTOTAL(109,MarketingVariances[Kol]) -> 6,100.00 kn | K28: =SUBTOTAL(109,MarketingVariances[Ruj]) -> 3,100.00 kn | L28: =SUBTOTAL(109,MarketingVariances[Lis]) -> 8,100.00 kn | M28: =SUBTOTAL(109,MarketingVariances[Stu]) -> 3,100.00 kn | N28: =SUBTOTAL(109,MarketingVariances[Pro]) -> 6,900.00 kn | O28: =SUBTOTAL(109,MarketingVariances[GODINA]) -> 34,641.00 kn
A30: Odstupanje u troškovima putovanja ili obuke automatski se izračunava u tablici Odstupanja za obuku i putovanja koja počinje ćelijom zdesna. Sljedeća je uputa u ćeliji A35. | B30: Obuka/putovanja | C30: Sij | D30: Velj | E30: Ožu | F30: Tra | G30: Svi | H30: Lip | I30: Srp | J30: Kol | K30: Ruj | L30: Lis | M30: Stu | N30: Pro | O30: GODINA
B31: Obuka | C31: =INDEX(TrainingAndTravelPlan[],MATCH(INDEX(TrainingAndTravelVariances[],ROW()-ROW(TrainingAndTravelVariances[[#Headers],[Sij]]),1),INDEX(TrainingAndTravelPlan[],,1),0),MATCH(TrainingAndTravelVariances[[#Headers],[Sij]],TrainingAndTravelPlan[#Headers],0))-INDEX(TrainingAndTravelActual[],MATCH(INDEX(TrainingAndTravelVariances[],ROW()-ROW(TrainingAndTravelVariances[[#Headers],[Sij]]),1),INDEX(TrainingAndTravelPlan[],,1),0),MATCH(TrainingAndTravelVariances[[#Headers],[Sij]],TrainingAndTravelActual[#Headers],0)) -> 400.00 kn | D31: =INDEX(TrainingAndTravelPlan[],MATCH(INDEX(TrainingAndTravelVariances[],ROW()-ROW(TrainingAndTravelVariances[[#Headers],[Velj]]),1),INDEX(TrainingAndTravelPlan[],,1),0),MATCH(TrainingAndTravelVariances[[#Headers],[Velj]],TrainingAndTravelPlan[#Headers],0))-INDEX(TrainingAndTravelActual[],MATCH(INDEX(TrainingAndTravelVariances[],ROW()-ROW(TrainingAndTravelVariances[[#Headers],[Velj]]),1),INDEX(TrainingAndTravelPlan[],,1),0),MATCH(TrainingAndTravelVariances[[#Headers],[Velj]],TrainingAndTravelActual[#Headers],0)) -> -400.00 kn | E31: =INDEX(TrainingAndTravelPlan[],MATCH(INDEX(TrainingAndTravelVariances[],ROW()-ROW(TrainingAndTravelVariances[[#Headers],[Ožu]]),1),INDEX(TrainingAndTravelPlan[],,1),0),MATCH(TrainingAndTravelVariances[[#Headers],[Ožu]],TrainingAndTravelPlan[#Headers],0))-INDEX(TrainingAndTravelActual[],MATCH(INDEX(TrainingAndTravelVariances[],ROW()-ROW(TrainingAndTravelVariances[[#Headers],[Ožu]]),1),INDEX(TrainingAndTravelPlan[],,1),0),MATCH(TrainingAndTravelVariances[[#Headers],[Ožu]],TrainingAndTravelActual[#Headers],0)) -> 600.00 kn | F31: =INDEX(TrainingAndTravelPlan[],MATCH(INDEX(TrainingAndTravelVariances[],ROW()-ROW(TrainingAndTravelVariances[[#Headers],[Tra]]),1),INDEX(TrainingAndTravelPlan[],,1),0),MATCH(TrainingAndTravelVariances[[#Headers],[Tra]],TrainingAndTravelPlan[#Headers],0))-INDEX(TrainingAndTravelActual[],MATCH(INDEX(TrainingAndTravelVariances[],ROW()-ROW(TrainingAndTravelVariances[[#Headers],[Tra]]),1),INDEX(TrainingAndTravelPlan[],,1),0),MATCH(TrainingAndTravelVariances[[#Headers],[Tra]],TrainingAndTravelActual[#Headers],0)) -> 400.00 kn | G31: =INDEX(TrainingAndTravelPlan[],MATCH(INDEX(TrainingAndTravelVariances[],ROW()-ROW(TrainingAndTravelVariances[[#Headers],[Svi]]),1),INDEX(TrainingAndTravelPlan[],,1),0),MATCH(TrainingAndTravelVariances[[#Headers],[Svi]],TrainingAndTravelPlan[#Headers],0))-INDEX(TrainingAndTravelActual[],MATCH(INDEX(TrainingAndTravelVariances[],ROW()-ROW(TrainingAndTravelVariances[[#Headers],[Svi]]),1),INDEX(TrainingAndTravelPlan[],,1),0),MATCH(TrainingAndTravelVariances[[#Headers],[Svi]],TrainingAndTravelActual[#Headers],0)) -> 800.00 kn | H31: =INDEX(TrainingAndTravelPlan[],MATCH(INDEX(TrainingAndTravelVariances[],ROW()-ROW(TrainingAndTravelVariances[[#Headers],[Lip]]),1),INDEX(TrainingAndTravelPlan[],,1),0),MATCH(TrainingAndTravelVariances[[#Headers],[Lip]],TrainingAndTravelPlan[#Headers],0))-INDEX(TrainingAndTravelActual[],MATCH(INDEX(TrainingAndTravelVariances[],ROW()-ROW(TrainingAndTravelVariances[[#Headers],[Lip]]),1),INDEX(TrainingAndTravelPlan[],,1),0),MATCH(TrainingAndTravelVariances[[#Headers],[Lip]],TrainingAndTravelActual[#Headers],0)) -> -800.00 kn | I31: =INDEX(TrainingAndTravelPlan[],MATCH(INDEX(TrainingAndTravelVariances[],ROW()-ROW(TrainingAndTravelVariances[[#Headers],[Srp]]),1),INDEX(TrainingAndTravelPlan[],,1),0),MATCH(TrainingAndTravelVariances[[#Headers],[Srp]],TrainingAndTravelPlan[#Headers],0))-INDEX(TrainingAndTravelActual[],MATCH(INDEX(TrainingAndTravelVariances[],ROW()-ROW(TrainingAndTravelVariances[[#Headers],[Srp]]),1),INDEX(TrainingAndTravelPlan[],,1),0),MATCH(TrainingAndTravelVariances[[#Headers],[Srp]],TrainingAndTravelActual[#Headers],0)) -> 2,000.00 kn | J31: =INDEX(TrainingAndTravelPlan[],MATCH(INDEX(TrainingAndTravelVariances[],ROW()-ROW(TrainingAndTravelVariances[[#Headers],[Kol]]),1),INDEX(TrainingAndTravelPlan[],,1),0),MATCH(TrainingAndTravelVariances[[#Headers],[Kol]],TrainingAndTravelPlan[#Headers],0))-INDEX(TrainingAndTravelActual[],MATCH(INDEX(TrainingAndTravelVariances[],ROW()-ROW(TrainingAndTravelVariances[[#Headers],[Kol]]),1),INDEX(TrainingAndTravelPlan[],,1),0),MATCH(TrainingAndTravelVariances[[#Headers],[Kol]],TrainingAndTravelActual[#Headers],0)) -> 2,000.00 kn | K31: =INDEX(TrainingAndTravelPlan[],MATCH(INDEX(TrainingAndTravelVariances[],ROW()-ROW(TrainingAndTravelVariances[[#Headers],[Ruj]]),1),INDEX(TrainingAndTravelPlan[],,1),0),MATCH(TrainingAndTravelVariances[[#Headers],[Ruj]],TrainingAndTravelPlan[#Headers],0))-INDEX(TrainingAndTravelActual[],MATCH(INDEX(TrainingAndTravelVariances[],ROW()-ROW(TrainingAndTravelVariances[[#Headers],[Ruj]]),1),INDEX(TrainingAndTravelPlan[],,1),0),MATCH(TrainingAndTravelVariances[[#Headers],[Ruj]],TrainingAndTravelActual[#Headers],0)) -> 2,000.00 kn | L31: =INDEX(TrainingAndTravelPlan[],MATCH(INDEX(TrainingAndTravelVariances[],ROW()-ROW(TrainingAndTravelVariances[[#Headers],[Lis]]),1),INDEX(TrainingAndTravelPlan[],,1),0),MATCH(TrainingAndTravelVariances[[#Headers],[Lis]],TrainingAndTravelPlan[#Headers],0))-INDEX(TrainingAndTravelActual[],MATCH(INDEX(TrainingAndTravelVariances[],ROW()-ROW(TrainingAndTravelVariances[[#Headers],[Lis]]),1),INDEX(TrainingAndTravelPlan[],,1),0),MATCH(TrainingAndTravelVariances[[#Headers],[Lis]],TrainingAndTravelActual[#Headers],0)) -> 2,000.00 kn | M31: =INDEX(TrainingAndTravelPlan[],MATCH(INDEX(TrainingAndTravelVariances[],ROW()-ROW(TrainingAndTravelVariances[[#Headers],[Stu]]),1),INDEX(TrainingAndTravelPlan[],,1),0),MATCH(TrainingAndTravelVariances[[#Headers],[Stu]],TrainingAndTravelPlan[#Headers],0))-INDEX(TrainingAndTravelActual[],MATCH(INDEX(TrainingAndTravelVariances[],ROW()-ROW(TrainingAndTravelVariances[[#Headers],[Stu]]),1),INDEX(TrainingAndTravelPlan[],,1),0),MATCH(TrainingAndTravelVariances[[#Headers],[Stu]],TrainingAndTravelActual[#Headers],0)) -> 2,000.00 kn | N31: =INDEX(TrainingAndTravelPlan[],MATCH(INDEX(TrainingAndTravelVariances[],ROW()-ROW(TrainingAndTravelVariances[[#Headers],[Pro]]),1),INDEX(TrainingAndTravelPlan[],,1),0),MATCH(TrainingAndTravelVariances[[#Headers],[Pro]],TrainingAndTravelPlan[#Headers],0))-INDEX(TrainingAndTravelActual[],MATCH(INDEX(TrainingAndTravelVariances[],ROW()-ROW(TrainingAndTravelVariances[[#Headers],[Pro]]),1),INDEX(TrainingAndTravelPlan[],,1),0),MATCH(TrainingAndTravelVariances[[#Headers],[Pro]],TrainingAndTravelActual[#Headers],0)) -> 2,000.00 kn | O31: =SUM(TrainingAndTravelVariances[[#This Row],[Sij]:[Pro]]) -> 13,000.00 kn
B32: Troškovi putovanja povezanih s obukom | C32: =INDEX(TrainingAndTravelPlan[],MATCH(INDEX(TrainingAndTravelVariances[],ROW()-ROW(TrainingAndTravelVariances[[#Headers],[Sij]]),1),INDEX(TrainingAndTravelPlan[],,1),0),MATCH(TrainingAndTravelVariances[[#Headers],[Sij]],TrainingAndTravelPlan[#Headers],0))-INDEX(TrainingAndTravelActual[],MATCH(INDEX(TrainingAndTravelVariances[],ROW()-ROW(TrainingAndTravelVariances[[#Headers],[Sij]]),1),INDEX(TrainingAndTravelPlan[],,1),0),MATCH(TrainingAndTravelVariances[[#Headers],[Sij]],TrainingAndTravelActual[#Headers],0)) -> 800.00 kn | D32: =INDEX(TrainingAndTravelPlan[],MATCH(INDEX(TrainingAndTravelVariances[],ROW()-ROW(TrainingAndTravelVariances[[#Headers],[Velj]]),1),INDEX(TrainingAndTravelPlan[],,1),0),MATCH(TrainingAndTravelVariances[[#Headers],[Velj]],TrainingAndTravelPlan[#Headers],0))-INDEX(TrainingAndTravelActual[],MATCH(INDEX(TrainingAndTravelVariances[],ROW()-ROW(TrainingAndTravelVariances[[#Headers],[Velj]]),1),INDEX(TrainingAndTravelPlan[],,1),0),MATCH(TrainingAndTravelVariances[[#Headers],[Velj]],TrainingAndTravelActual[#Headers],0)) -> -200.00 kn | E32: =INDEX(TrainingAndTravelPlan[],MATCH(INDEX(TrainingAndTravelVariances[],ROW()-ROW(TrainingAndTravelVariances[[#Headers],[Ožu]]),1),INDEX(TrainingAndTravelPlan[],,1),0),MATCH(TrainingAndTravelVariances[[#Headers],[Ožu]],TrainingAndTravelPlan[#Headers],0))-INDEX(TrainingAndTravelActual[],MATCH(INDEX(TrainingAndTravelVariances[],ROW()-ROW(TrainingAndTravelVariances[[#Headers],[Ožu]]),1),INDEX(TrainingAndTravelPlan[],,1),0),MATCH(TrainingAndTravelVariances[[#Headers],[Ožu]],TrainingAndTravelActual[#Headers],0)) -> 600.00 kn | F32: =INDEX(TrainingAndTravelPlan[],MATCH(INDEX(TrainingAndTravelVariances[],ROW()-ROW(TrainingAndTravelVariances[[#Headers],[Tra]]),1),INDEX(TrainingAndTravelPlan[],,1),0),MATCH(TrainingAndTravelVariances[[#Headers],[Tra]],TrainingAndTravelPlan[#Headers],0))-INDEX(TrainingAndTravelActual[],MATCH(INDEX(TrainingAndTravelVariances[],ROW()-ROW(TrainingAndTravelVariances[[#Headers],[Tra]]),1),INDEX(TrainingAndTravelPlan[],,1),0),MATCH(TrainingAndTravelVariances[[#Headers],[Tra]],TrainingAndTravelActual[#Headers],0)) -> 800.00 kn | G32: =INDEX(TrainingAndTravelPlan[],MATCH(INDEX(TrainingAndTravelVariances[],ROW()-ROW(TrainingAndTravelVariances[[#Headers],[Svi]]),1),INDEX(TrainingAndTravelPlan[],,1),0),MATCH(TrainingAndTravelVariances[[#Headers],[Svi]],TrainingAndTravelPlan[#Headers],0))-INDEX(TrainingAndTravelActual[],MATCH(INDEX(TrainingAndTravelVariances[],ROW()-ROW(TrainingAndTravelVariances[[#Headers],[Svi]]),1),INDEX(TrainingAndTravelPlan[],,1),0),MATCH(TrainingAndTravelVariances[[#Headers],[Svi]],TrainingAndTravelActual[#Headers],0)) -> 1,200.00 kn | H32: =INDEX(TrainingAndTravelPlan[],MATCH(INDEX(TrainingAndTravelVariances[],ROW()-ROW(TrainingAndTravelVariances[[#Headers],[Lip]]),1),INDEX(TrainingAndTravelPlan[],,1),0),MATCH(TrainingAndTravelVariances[[#Headers],[Lip]],TrainingAndTravelPlan[#Headers],0))-INDEX(TrainingAndTravelActual[],MATCH(INDEX(TrainingAndTravelVariances[],ROW()-ROW(TrainingAndTravelVariances[[#Headers],[Lip]]),1),INDEX(TrainingAndTravelPlan[],,1),0),MATCH(TrainingAndTravelVariances[[#Headers],[Lip]],TrainingAndTravelActual[#Headers],0)) -> -1,500.00 kn | I32: =INDEX(TrainingAndTravelPlan[],MATCH(INDEX(TrainingAndTravelVariances[],ROW()-ROW(TrainingAndTravelVariances[[#Headers],[Srp]]),1),INDEX(TrainingAndTravelPlan[],,1),0),MATCH(TrainingAndTravelVariances[[#Headers],[Srp]],TrainingAndTravelPlan[#Headers],0))-INDEX(TrainingAndTravelActual[],MATCH(INDEX(TrainingAndTravelVariances[],ROW()-ROW(TrainingAndTravelVariances[[#Headers],[Srp]]),1),INDEX(TrainingAndTravelPlan[],,1),0),MATCH(TrainingAndTravelVariances[[#Headers],[Srp]],TrainingAndTravelActual[#Headers],0)) -> 2,000.00 kn | J32: =INDEX(TrainingAndTravelPlan[],MATCH(INDEX(TrainingAndTravelVariances[],ROW()-ROW(TrainingAndTravelVariances[[#Headers],[Kol]]),1),INDEX(TrainingAndTravelPlan[],,1),0),MATCH(TrainingAndTravelVariances[[#Headers],[Kol]],TrainingAndTravelPlan[#Headers],0))-INDEX(TrainingAndTravelActual[],MATCH(INDEX(TrainingAndTravelVariances[],ROW()-ROW(TrainingAndTravelVariances[[#Headers],[Kol]]),1),INDEX(TrainingAndTravelPlan[],,1),0),MATCH(TrainingAndTravelVariances[[#Headers],[Kol]],TrainingAndTravelActual[#Headers],0)) -> 2,000.00 kn | K32: =INDEX(TrainingAndTravelPlan[],MATCH(INDEX(TrainingAndTravelVariances[],ROW()-ROW(TrainingAndTravelVariances[[#Headers],[Ruj]]),1),INDEX(TrainingAndTravelPlan[],,1),0),MATCH(TrainingAndTravelVariances[[#Headers],[Ruj]],TrainingAndTravelPlan[#Headers],0))-INDEX(TrainingAndTravelActual[],MATCH(INDEX(TrainingAndTravelVariances[],ROW()-ROW(TrainingAndTravelVariances[[#Headers],[Ruj]]),1),INDEX(TrainingAndTravelPlan[],,1),0),MATCH(TrainingAndTravelVariances[[#Headers],[Ruj]],TrainingAndTravelActual[#Headers],0)) -> 2,000.00 kn | L32: =INDEX(TrainingAndTravelPlan[],MATCH(INDEX(TrainingAndTravelVariances[],ROW()-ROW(TrainingAndTravelVariances[[#Headers],[Lis]]),1),INDEX(TrainingAndTravelPlan[],,1),0),MATCH(TrainingAndTravelVariances[[#Headers],[Lis]],TrainingAndTravelPlan[#Headers],0))-INDEX(TrainingAndTravelActual[],MATCH(INDEX(TrainingAndTravelVariances[],ROW()-ROW(TrainingAndTravelVariances[[#Headers],[Lis]]),1),INDEX(TrainingAndTravelPlan[],,1),0),MATCH(TrainingAndTravelVariances[[#Headers],[Lis]],TrainingAndTravelActual[#Headers],0)) -> 2,000.00 kn | M32: =INDEX(TrainingAndTravelPlan[],MATCH(INDEX(TrainingAndTravelVariances[],ROW()-ROW(TrainingAndTravelVariances[[#Headers],[Stu]]),1),INDEX(TrainingAndTravelPlan[],,1),0),MATCH(TrainingAndTravelVariances[[#Headers],[Stu]],TrainingAndTravelPlan[#Headers],0))-INDEX(TrainingAndTravelActual[],MATCH(INDEX(TrainingAndTravelVariances[],ROW()-ROW(TrainingAndTravelVariances[[#Headers],[Stu]]),1),INDEX(TrainingAndTravelPlan[],,1),0),MATCH(TrainingAndTravelVariances[[#Headers],[Stu]],TrainingAndTravelActual[#Headers],0)) -> 2,000.00 kn | N32: =INDEX(TrainingAndTravelPlan[],MATCH(INDEX(TrainingAndTravelVariances[],ROW()-ROW(TrainingAndTravelVariances[[#Headers],[Pro]]),1),INDEX(TrainingAndTravelPlan[],,1),0),MATCH(TrainingAndTravelVariances[[#Headers],[Pro]],TrainingAndTravelPlan[#Headers],0))-INDEX(TrainingAndTravelActual[],MATCH(INDEX(TrainingAndTravelVariances[],ROW()-ROW(TrainingAndTravelVariances[[#Headers],[Pro]]),1),INDEX(TrainingAndTravelPlan[],,1),0),MATCH(TrainingAndTravelVariances[[#Headers],[Pro]],TrainingAndTravelActual[#Headers],0)) -> 2,000.00 kn | O32: =SUM(TrainingAndTravelVariances[[#This Row],[Sij]:[Pro]]) -> 13,700.00 kn
B33: Podzbroj | C33: =SUBTOTAL(109,TrainingAndTravelVariances[Sij]) -> 1,200.00 kn | D33: =SUBTOTAL(109,TrainingAndTravelVariances[Velj]) -> -600.00 kn | E33: =SUBTOTAL(109,TrainingAndTravelVariances[Ožu]) -> 1,200.00 kn | F33: =SUBTOTAL(109,TrainingAndTravelVariances[Tra]) -> 1,200.00 kn | G33: =SUBTOTAL(109,TrainingAndTravelVariances[Svi]) -> 2,000.00 kn | H33: =SUBTOTAL(109,TrainingAndTravelVariances[Lip]) -> -2,300.00 kn | I33: =SUBTOTAL(109,TrainingAndTravelVariances[Srp]) -> 4,000.00 kn | J33: =SUBTOTAL(109,TrainingAndTravelVariances[Kol]) -> 4,000.00 kn | K33: =SUBTOTAL(109,TrainingAndTravelVariances[Ruj]) -> 4,000.00 kn | L33: =SUBTOTAL(109,TrainingAndTravelVariances[Lis]) -> 4,000.00 kn | M33: =SUBTOTAL(109,TrainingAndTravelVariances[Stu]) -> 4,000.00 kn | N33: =SUBTOTAL(109,TrainingAndTravelVariances[Pro]) -> 4,000.00 kn | O33: =SUBTOTAL(109,TrainingAndTravelVariances[GODINA]) -> 26,700.00 kn
A35: Odstupanja u troškovima automatski su izračunata u tablici Ukupna odstupanja koja počinje ćelijom zdesna. | B35: UKUPNI IZNOSI | C35: Sij | D35: Velj | E35: Ožu | F35: Tra | G35: Svi | H35: Lip | I35: Srp | J35: Kol | K35: Ruj | L35: Lis | M35: Stu | N35: Pro | O35: Godina
B36: Mjesečni stvarni troškovi | C36: =TrainingAndTravelVariances[[#Totals],[Sij]]+MarketingVariances[[#Totals],[Sij]]+OfficeVariances[[#Totals],[Sij]]+EmployeeVariances[[#Totals],[Sij]] -> 1,738.00 kn | D36: =TrainingAndTravelVariances[[#Totals],[Velj]]+MarketingVariances[[#Totals],[Velj]]+OfficeVariances[[#Totals],[Velj]]+EmployeeVariances[[#Totals],[Velj]] -> -984.00 kn | E36: =TrainingAndTravelVariances[[#Totals],[Ožu]]+MarketingVariances[[#Totals],[Ožu]]+OfficeVariances[[#Totals],[Ožu]]+EmployeeVariances[[#Totals],[Ožu]] -> 1,255.00 kn | F36: =TrainingAndTravelVariances[[#Totals],[Tra]]+MarketingVariances[[#Totals],[Tra]]+OfficeVariances[[#Totals],[Tra]]+EmployeeVariances[[#Totals],[Tra]] -> 301.00 kn | G36: =TrainingAndTravelVariances[[#Totals],[Svi]]+MarketingVariances[[#Totals],[Svi]]+OfficeVariances[[#Totals],[Svi]]+EmployeeVariances[[#Totals],[Svi]] -> 1,440.00 kn | H36: =TrainingAndTravelVariances[[#Totals],[Lip]]+MarketingVariances[[#Totals],[Lip]]+OfficeVariances[[#Totals],[Lip]]+EmployeeVariances[[#Totals],[Lip]] -> -3,744.00 kn | I36: =TrainingAndTravelVariances[[#Totals],[Srp]]+MarketingVariances[[#Totals],[Srp]]+OfficeVariances[[#Totals],[Srp]]+EmployeeVariances[[#Totals],[Srp]] -> 134,695.00 kn | J36: =TrainingAndTravelVariances[[#Totals],[Kol]]+MarketingVariances[[#Totals],[Kol]]+OfficeVariances[[#Totals],[Kol]]+EmployeeVariances[[#Totals],[Kol]] -> 138,918.00 kn | K36: =TrainingAndTravelVariances[[#Totals],[Ruj]]+MarketingVariances[[#Totals],[Ruj]]+OfficeVariances[[#Totals],[Ruj]]+EmployeeVariances[[#Totals],[Ruj]] -> 135,918.00 kn | L36: =TrainingAndTravelVariances[[#Totals],[Lis]]+MarketingVariances[[#Totals],[Lis]]+OfficeVariances[[#Totals],[Lis]]+EmployeeVariances[[#Totals],[Lis]] -> 140,918.00 kn | M36: =TrainingAndTravelVariances[[#Totals],[Stu]]+MarketingVariances[[#Totals],[Stu]]+OfficeVariances[[#Totals],[Stu]]+EmployeeVariances[[#Totals],[Stu]] -> 136,218.00 kn | N36: =TrainingAndTravelVariances[[#Totals],[Pro]]+MarketingVariances[[#Totals],[Pro]]+OfficeVariances[[#Totals],[Pro]]+EmployeeVariances[[#Totals],[Pro]] -> 140,018.00 kn | O36: =TrainingAndTravelVariances[[#Totals],[GODINA]]+MarketingVariances[[#Totals],[GODINA]]+OfficeVariances[[#Totals],[GODINA]]+EmployeeVariances[[#Totals],[GODINA]] -> 826,691.00 kn
B37: UKUPNI stvarni troškovi | C37: =SUM($C$36:C36) -> 1,738.00 kn | D37: =SUM($C$36:D36) -> 754.00 kn | E37: =SUM($C$36:E36) -> 2,009.00 kn | F37: =SUM($C$36:F36) -> 2,310.00 kn | G37: =SUM($C$36:G36) -> 3,750.00 kn | H37: =SUM($C$36:H36) -> 6.00 kn | I37: =SUM($C$36:I36) -> 134,701.00 kn | J37: =SUM($C$36:J36) -> 273,619.00 kn | K37: =SUM($C$36:K36) -> 409,537.00 kn | L37: =SUM($C$36:L36) -> 550,455.00 kn | M37: =SUM($C$36:M36) -> 686,673.00 kn | N37: =SUM($C$36:N36) -> 826,691.00 kn

Sheet EXPENSE ANALYSIS
A1: Godišnji planirani i stvarni troškovi, odstupanja u troškovima i postotak odstupanja automatski se ažuriraju za svaku kategoriju troškova na ovom radnom listu. Upute za korištenje ovog radnog lista nalaze se u ćelijama u ovom stupcu. Pomoću tipke sa strelicom prema dolje počnite s radom.
A2: Naziv tvrtke automatski se ažurira u ćeliji zdesna. Logotip unesite u ćeliju F2. | B2: ='PLANNED EXPENSES'!B2:D3 -> Naziv tvrtke | F2: U ovoj se ćeliji nalazi rezervirano mjesto za logotip.
A3: Naslov ovog radnog lista nalazi se u ćeliji E3. Sljedeća je uputa u ćeliji A5. | E3: =worksheet_title -> Detaljne procjene troškova
A5: Planirani troškovi, stvarni troškovi, odstupanja u troškovima i postotak odstupanja automatski se izračunavaju u tablici Analiza koja započinje ćelijom zdesna. Sljedeća je uputa u ćeliji A12. | B5: Kategorije troškova | C5: Planirani troškovi | D5: Stvarni troškovi | E5: Odstupanje u troškovima | F5: Postotak odstupanja
B6: Troškovi zaposlenika | C6: =EmployeePlan[[#Totals],[GODINA]] -> 1,355,090.00 kn | D6: =EmployeeActual[[#Totals],[GODINA]] -> 659,130.00 kn | E6: =C6-D6 -> 695,960.00 kn | F6: =E6/C6 -> 51%
B7: ='PLANNED EXPENSES'!B10 -> Troškovi ureda | C7: =OfficePlan[[#Totals],[GODINA]] -> 138,740.00 kn | D7: =OfficeActual[[#Totals],[GODINA]] -> 69,350.00 kn | E7: =C7-D7 -> 69,390.00 kn | F7: =E7/C7 -> 50%
B8: ='PLANNED EXPENSES'!B21 -> Troškovi marketinga | C8: =MarketingPlan[[#Totals],[GODINA]] -> 67,800.00 kn | D8: =MarketingActual[[#Totals],[GODINA]] -> 33,159.00 kn | E8: =C8-D8 -> 34,641.00 kn | F8: =E8/C8 -> 51%
B9: ='PLANNED EXPENSES'!B30 -> Obuka/putovanja | C9: =TrainingAndTravelPlan[[#Totals],[GODINA]] -> 48,000.00 kn | D9: =TrainingAndTravelActual[[#Totals],[GODINA]] -> 21,300.00 kn | E9: =C9-D9 -> 26,700.00 kn | F9: =E9/C9 -> 56%
B10: ='PLANNED EXPENSES'!B35 -> UKUPNI IZNOSI | C10: ='PLANNED EXPENSES'!O36 -> 1,609,630.00 kn | D10: ='ACTUAL EXPENSES'!O36 -> 782,939.00 kn | E10: =C10-D10 -> 826,691.00 kn | F10: =E10/C10 -> 51%
A12: Tortni grafikon planiranih troškova nalazi se u ćeliji zdesna, dok se tortni grafikon stvarnih troškova nalazi u ćeliji D12. Sljedeća je uputa u ćeliji A14. | B12: Tortni grafikon koji prikazuje planirane troškove za različite kategorije nalazi se u ovoj ćeliji. | D12: Tortni grafikon koji prikazuje stvarne troškove za različite kategorije nalazi se u ovoj ćeliji.
A14: Grafikon koji prikazuje planirane i stvarne troškove i odstupanja u mjesečnim troškovima nalazi se u ćeliji zdesna.
